Cogmind - Beta 16.1 @@@ ROGUE MODE // 2026.04.05 @ 13:49:29 Player: FL-IST Result: Destroyed by Y-72 Warden with Railgun Performance ------------- Evolutions (8) 4000 Regions Visited (29) 5800 Robots Destroyed (317) 1585 Value Destroyed (11337) 11337 Prototype IDs (113) 2260 Alien Tech Used (2) 400 Bonus (7291) 7291 TOTAL SCORE: 32673 Bonus ------- High Alert Combat Kills 1296 Follower Combat Kills 254 Hunted by Unchained 500 Met Data Miner 300 Met Imprinter 300 Destroyed Z-Imprinter 1000 Met Warlord at Base 500 MAIN.C Attacked Warlord 500 Met Warlord at Research 2000 Invited to Help at Command 2000 Friendly Fire -1359 Cogmind --------- Core Integrity 0/1450 Matter 300/300 Energy 96/100 System Corruption 30% Temperature Cool (0) Movement Core (100) Ox1 Location -2/Protoforge Parts ------- > --- POWER (2) -------- (None) > --- PROPULSION (8) --- (None) > --- UTILITY (11) ----- Advanced Visual Processing Unit Advanced Target Analyzer Concept Navigation Harness > --- WEAPON (2) ------- Concept Deflector Sword > --- INVENTORY (5) ---- Experimental Reaction Control System Concept RG22 Armor Crosscalibrator Experimental Terror Saw Peak State ------------ > --- POWER ------------ Micro Antimatter Reactor Improved Quantum Reactor > --- PROPULSION ------- Improved Antigrav System Improved Antigrav System Improved Antigrav System Improved Antigrav System Improved Antigrav System Improved Antigrav System Improved Antigrav System Concept Gyrokinetic System > --- UTILITY ---------- Advanced Heat Sink Concept Phasing Heat Sink Medium Storage Unit Advanced Visual Processing Unit Concept Hypertargeting System Concept Networked Targeting System Advanced Target Analyzer Advanced Target Analyzer Experimental Reaction Control System Medium Reflective Plating Graphene Brace > --- WEAPON ----------- Concept Plasma Driver Concept Plasma Driver > --- INVENTORY -------- Hybrid Graviton Reactor Concept Weapon Articulator ECM Suite Experimental Reaction Control System Crosscalibrator Concept XC Strikerail Concept XC Strikerail Concept XC Strikerail Concept XC Strikerail Portable AFG [Rating: 192] Favorites ----------- Power Zionite Light DM Reactor Engine Ion Engine Power Core Light Nuclear Core Reactor Zionite Light DM Reactor Propulsion Light Treads Treads Light Treads Leg Concept Biometal Exoskeleton Wheel Wheel Hover Unit Improved Antigrav System Flight Unit Cooled Impulse Thruster Utility Medium Storage Unit Device Experimental Sensor Array Storage Medium Storage Unit Processor Advanced Signal Interpreter Hackware Hacking Suite Protection Light Regenerative Plating Weapon Advanced Beam Cannon Energy Gun Concept Lightning Penetrator Energy Cannon Advanced Beam Cannon Ballistic Gun Assault Rifle Ballistic Cannon Gauss Cannon Launcher Improved Proton Missile Launcher Special Weapon Improved Plasma Cutter Impact Weapon Heavy Hammer Slashing Weapon Scythe Piercing Weapon Experimental Jetlance Special Melee Weapon Advanced Datajack Build | -11 -10 -10 -9 -9 -8 -7 -7 -7 -7 -6 -6 -6 -6 -6 -5 -5 -5 -5 -5 -4 -4 -4 -4 -4 -3 -3 -2 -2 -2 ------- Run | Yrd Mat Min Mat Min Mat Fac Low Zio Dee Pro Fac Low Low Dat Pro Fac Upp Upp War Pro Fac Was Fac Ext Res Tes Res Qua Frg Slots Evolved 16 | . . . 2 . 2 2 . . . . 2 . . . . 2 . . . . 2 . . . 2 . 2 . . Power 1 | . . . . . . . . . . . . . . . . . . . . . 1 . . . . . . . . Propulsion 6 | . . . 1 . 1 1 . . . . . . . . . 1 . . . . 1 . . . 1 . . . . Utility 9 | . . . 1 . 1 1 . . . . 2 . . . . 1 . . . . . . . . 1 . 2 . . Weapon . | . . . . . . . . . . . . . . . . . . . . . . . . . . . . . . Parts Attached 278 | 7 8 4 19 4 28 25 2 1 15 . 10 1 5 . . 14 3 . 10 . 7 . 1 1 9 5 9 2 88 Power 27 | 1 . 1 2 . 5 2 . . 1 . . . 1 . . . . . . . 2 . . . 1 . 2 . 9 Engine 6 | 1 . 1 . . 3 . . . . . . . . . . . . . . . 1 . . . . . . . . Core 6 | . . . 2 . 2 2 . . . . . . . . . . . . . . . . . . . . . . . Reactor 15 | . . . . . . . . . 1 . . . 1 . . . . . . . 1 . . . 1 . 2 . 9 Propulsion 86 | 2 2 1 10 2 10 12 1 . 3 . 3 1 3 . . 5 . . 2 . 1 . . . 6 . . . 22 Treads 24 | 1 1 1 9 2 8 . . . . . . . . . . . . . . . . . . . . . . . 2 Leg 1 | . . . . . . . . . . . . . . . . . . . . . . . . . . . . . 1 Wheel 5 | 1 1 . . . 2 . . . . . . . . . . . . . . . . . . . . . . . 1 Hover 13 | . . . . . . . . . 2 . . . . . . . . . . . . . . . . . . . 11 Flight 43 | . . . 1 . . 12 1 . 1 . 3 1 3 . . 5 . . 2 . 1 . . . 6 . . . 7 Utility 108 | 2 3 . 4 1 6 8 . . 9 . 6 . 1 . . 8 1 . 6 . 3 . 1 . 2 2 4 2 39 Device 46 | 1 . . 2 . 2 3 . . 1 . 2 . 1 . . 1 . . 4 . 2 . 1 . . 1 1 2 22 Storage 8 | 1 3 . . . . 1 . . 1 . . . . . . . . . 1 . . . . . . . . . 1 Processor 12 | . . . . . . 1 . . . . 1 . . . . . 1 . 1 . . . . . . . 2 . 6 Hackware 16 | . . . . . 2 1 . . 3 . 2 . . . . 6 . . . . 1 . . . 1 . . . . Protection 26 | . . . 2 1 2 2 . . 4 . 1 . . . . 1 . . . . . . . . 1 1 1 . 10 Artifact . | . . . . . . . . . . . . . . . . . . . . . . . . . . . . . . Weapon 57 | 2 3 2 3 1 7 3 1 1 2 . 1 . . . . 1 2 . 2 . 1 . . 1 . 3 3 . 18 Energy Gun 6 | . . . . . . . . . . . . . . . . . . . . . . . . . . 1 . . 5 Energy Cannon 11 | . 2 2 2 . 1 . . . . . . . . . . . . . . . 1 . . . . . 1 . 2 Ballistic Gun 7 | 2 . . . . . . . . . . . . . . . . . . . . . . . . . . 1 . 4 Ballistic Cannon 8 | . . . . . 4 . 1 . . . . . . . . . . . . . . . . . . . 1 . 2 Launcher 8 | . 1 . . 1 2 . . . . . 1 . . . . . 1 . . . . . . . . 1 . . 1 Special Weapon 6 | . . . . . . . . 1 2 . . . . . . . 1 . 2 . . . . . . . . . . Impact Weapon 1 | . . . 1 . . . . . . . . . . . . . . . . . . . . . . . . . . Slashing Weapon 8 | . . . . . . 3 . . . . . . . . . 1 . . . . . . . . . 1 . . 3 Piercing Weapon 1 | . . . . . . . . . . . . . . . . . . . . . . . . . . . . . 1 Special Melee Weapon 1 | . . . . . . . . . . . . . . . . . . . . . . . . 1 . . . . . Unidentified Prototypes 48 | . . . 2 . 1 . . 1 7 . 1 . . . . 1 . . 7 . . . . . 1 5 4 . 18 Parts Lost 83 | . . 3 . . 12 6 . . 3 . . 1 1 . . . . 1 . . . . . . . . . 1 55 Power 13 | . . 1 . . 3 1 . . . . . . . . . . . 1 . . . . . . . . . . 7 Propulsion 33 | . . 1 . . 4 5 . . 3 . . 1 1 . . . . . . . . . . . . . . . 18 Utility 24 | . . . . . 1 . . . . . . . . . . . . . . . . . . . . . . 1 22 Weapon 13 | . . 1 . . 4 . . . . . . . . . . . . . . . . . . . . . . . 8 Highest Loss Streak 8 | . . 3 . . 4 4 . . 2 . . 1 1 . . . . 1 . . . . . . . . . 1 8 To Critical Strikes 1 | . . . . . . . . . . . . . . . . . . . . . . . . . . . . . 1 Average Backups 12 | 3 13 19 19 20 19 10 10 9 9 10 9 9 9 10 9 9 7 9 10 10 9 10 10 10 9 9 8 8 6 Power . | . 1 . . . . . . . . 1 1 1 . 1 . 1 . . . . . . . . . . . 1 . Propulsion 3 | 1 4 6 6 6 5 2 1 1 . 1 1 . . . . 1 1 3 3 3 1 1 1 1 1 1 1 1 . Utility 5 | . 4 7 7 8 7 5 8 7 7 8 6 8 7 8 7 5 4 4 5 5 5 6 6 6 5 3 3 2 2 Weapon 2 | . 3 4 4 5 5 1 1 1 . . . . . 1 . 1 . 1 1 1 1 2 2 1 2 2 2 3 2 Tool/Special . | . . . . . . . . . . . . . . . . . . . . . . . . . . . . . . Unused Backups 37 | . 6 1 8 . 4 4 . . . . 2 . . . 1 1 . . . . . . . . . . 4 . 6 Power . | . . . . . . . . . . . . . . . . . . . . . . . . . . . . . . Propulsion 10 | . 2 1 3 . 2 . . . . . 1 . . . . . . . . . . . . . . . 1 . . Utility 13 | . . . 5 . 1 2 . . . . 1 . . . . 1 . . . . . . . . . . 2 . 1 Weapon 14 | . 4 . . . 1 2 . . . . . . . . 1 . . . . . . . . . . . 1 . 5 Tool/Special . | . . . . . . . . . . . . . . . . . . . . . . . . . . . . . . Average Slot Usage (%) 92 | . 100 99 99 100 92 72 98 99 90 91 90 99 95 100 94 90 94 97 95 94 93 94 93 98 95 92 93 95 77 Engine 2 | . 14 13 2 . . 4 . . . . . . . . . . . . . . . . . . . . . . . Core 2 | . . . 8 11 6 2 7 7 4 . . . . . . . . . . . . . . . . . . . . Reactor 3 | . . . . . . . . . 2 7 6 6 6 6 6 5 5 4 5 5 9 10 10 10 9 9 8 8 7 Treads 10 | . 14 14 31 33 28 . . . . . . . . . . . . . . . . . . . . . . . . Wheel 2 | . 14 14 1 . 3 . . . . . . . . . . . . . . . . . . . . . . . . Hover 1 | . . . . . . . . . 6 15 . . . . . . . . . . . . . . . . . . 10 Flight 16 | . . . . . . 24 38 38 30 23 31 33 31 33 33 33 35 35 35 35 36 36 36 36 33 33 30 30 9 Device 13 | . 14 14 11 14 10 4 6 7 3 7 15 17 19 20 14 13 17 17 18 17 15 15 19 15 18 19 17 17 17 Storage 7 | . 14 14 11 11 9 6 7 7 7 7 6 6 6 6 6 5 5 5 5 5 5 5 5 5 4 4 4 4 3 Processor 3 | . . . . . . 4 7 7 7 7 6 6 6 6 6 5 5 5 5 5 5 5 5 5 4 4 7 8 10 Hackware 6 | . . . . . 8 15 15 12 11 15 11 13 13 13 13 11 11 11 11 11 10 10 10 10 9 9 8 8 1 Protection 4 | . . . 10 7 7 . . 2 5 . 3 2 . . 4 5 4 5 3 4 5 5 . 5 4 4 7 8 6 Energy Cannon 6 | . 10 28 21 20 10 . . . . . . . . . . . . . . . . . . . . . 1 . 2 Ballistic Gun 1 | . 17 . . . . . . . . . . . . . . . . . . . . . . . . . . . 2 Ballistic Cannon 1 | . . . . . 7 . 1 . . . . . . . . . . . . . . . . . . . 1 4 . Slashing Weapon 3 | . . . . . . 8 11 15 6 6 6 6 6 6 6 5 5 4 5 5 5 5 5 5 4 4 4 4 . Peak Build Rating 192 | 7 11 11 23 21 42 42 39 42 56 56 77 75 77 77 77 93 100 100 106 100 120 120 120 129 153 158 167 168 192 Average Rating 65 | 5 8 10 18 20 28 29 37 38 45 55 66 71 71 77 73 81 92 96 100 100 114 120 118 125 140 148 159 165 155 On Entrance 76 | . 7 11 11 21 21 35 37 38 40 56 56 75 64 77 77 73 93 100 100 100 100 120 120 120 127 151 147 166 165 Avg Prop Armor Cover (%) 9 | 11 11 12 15 . . . . . 10 12 2 . . . . . . 3 . 2 . . . . . . . . 8 Naked Turns . | . . . . . . . . . . . . . . . . . . . . . . . . . . . . . . Heaviest Build 90 | 15 90 52 61 61 64 52 26 24 29 23 35 36 32 32 34 31 39 37 34 31 43 43 43 53 47 47 57 56 90 Greatest Support 100 | 20 12 12 63 63 83 56 25 25 28 28 40 40 45 45 45 41 34 34 36 47 58 45 45 58 57 72 57 72 100 Greatest Overweight (x) 14 | 1 8 4 4 . 2 14 1 . 1 . . . . . . 1 1 1 . . . . . 1 . . . . 4 Average Overweight (x) . | . 5 4 . . . . . . . . . . . . . . . . . . . . . . . . . . . Largest Inventory Capacity 25 | 8 25 20 20 20 20 20 10 10 10 10 10 10 10 10 10 10 10 10 10 10 10 10 10 10 10 10 10 10 10 Average Capacity 13 | 7 19 20 20 20 20 11 10 10 9 10 10 10 10 10 10 10 10 10 10 10 10 10 10 10 10 10 10 10 8 Most Carried 20 | 6 20 20 20 20 20 20 10 10 10 10 10 10 10 10 10 10 10 10 10 10 10 10 10 10 10 10 10 10 10 Average Carried 12 | 3 13 19 19 20 19 10 10 9 9 10 9 9 9 10 9 9 7 9 9 10 9 10 10 10 9 9 9 9 7 Final Capacity 20 | 8 20 20 20 20 20 10 10 10 10 10 10 10 10 10 10 10 10 10 10 10 10 10 10 10 10 10 10 10 5 Final Carried 20 | 6 20 20 20 20 18 10 10 10 10 10 10 9 10 10 10 10 10 10 10 10 10 10 10 10 10 10 10 8 4 Class Distribution -------------------- 31% | Scavenger-Mutant 16% | Mutant 12% | Hacker-Scout 6% | Machinist-Scout 6% | Hacker-Sprinter 5% | Sprinter 5% | Hacker-Mutant 4% | Derelict-Mutant 4% | Scavenger-Sprinter Dominant Class ---------------- Mutant | -10/Materials Mutant | -10/Mines Scavenger-Mutant | -9/Materials Scavenger-Mutant | -9/Mines Scavenger-Mutant | -8/Materials Hacker-Sprinter | -7/Factory Hacker-Sprinter | -7/Lower Caves Hacker-Sprinter | -7/Zion Scavenger-Mutant | -7/Deep Caves Scavenger-Mutant | -6/Proximity Caves Scavenger-Sprinter | -6/Factory Sprinter | -6/Lower Caves Sprinter | -6/Lower Caves Derelict-Mutant | -6/Data Miner Derelict-Mutant | -5/Proximity Caves Machinist-Scout | -5/Factory Machinist-Scout | -5/Upper Caves Machinist-Scout | -5/Upper Caves Commander-Scout | -5/Warlord Hacker-Scout | -4/Proximity Caves Machinist-Scout | -4/Factory Hacker-Scout | -4/Waste Hacker-Scout | -4/Factory Hacker-Scout | -4/Extension Hacker-Scout | -3/Research Hacker-Scout | -3/Testing Hacker-Scout | -2/Research Hacker-Scout | -2/Quarantine Scavenger-Mutant | -2/Protoforge Resources | -11 -10 -10 -9 -9 -8 -7 -7 -7 -7 -6 -6 -6 -6 -6 -5 -5 -5 -5 -5 -4 -4 -4 -4 -4 -3 -3 -2 -2 -2 ----------- Run | Yrd Mat Min Mat Min Mat Fac Low Zio Dee Pro Fac Low Low Dat Pro Fac Upp Upp War Pro Fac Was Fac Ext Res Tes Res Qua Frg Matter Collected 7737 | 349 299 40 265 213 1209 710 226 . 263 5 207 36 298 . 26 170 97 42 203 . 150 . . 87 120 46 362 16 2298 Remotely 13 | . . . . . . . . . . . . . . . . . . . . . . . . . . . . . 13 Salvage Created 13547 | 171 495 38 1740 379 2056 915 32 97 226 . 555 . 630 . 50 378 319 70 . 225 310 . . 348 294 187 383 16 3633 Parts 713 | 14 42 3 100 28 106 51 1 1 15 . 19 . 20 . 1 28 9 3 . 13 20 . . 8 12 7 20 4 188 Haulers Intercepted 17 | . 1 . 6 . 5 2 . . . . . . . . . . . . . . 1 . . . 2 . . . . Recyclers Shooed 4 | . . . . 1 . 1 . . . . 2 . . . . . . . . . . . . . . . . . . Parts Field Recycled . | . . . . . . . . . . . . . . . . . . . . . . . . . . . . . . Retrieved Matter . | . . . . . . . . . . . . . . . . . . . . . . . . . . . . . . Parts Self-Destructed 32 | . . . . . . . 4 1 . . . 12 8 . 2 . 2 3 . . . . . . . . . . . Prevented 30 | . . . . . . . . . . . . 1 18 . . . 6 5 . . . . . . . . . . . Parts Restored 2 | . . . . . . . . . . . . . . . . . . . . . . . . . . . . . 2 Faulty 2 | . . . . . . . . . . . . . . . . . . . . . . . . . . . . . 2 Kills | -11 -10 -10 -9 -9 -8 -7 -7 -7 -7 -6 -6 -6 -6 -6 -5 -5 -5 -5 -5 -4 -4 -4 -4 -4 -3 -3 -2 -2 -2 ------- Run | Yrd Mat Min Mat Min Mat Fac Low Zio Dee Pro Fac Low Low Dat Pro Fac Upp Upp War Pro Fac Was Fac Ext Res Tes Res Qua Frg Combat Hostiles Destroyed 181 | . 14 2 25 10 38 12 1 . 4 . . . 9 . . . 4 1 . . . . . 6 . . 2 . 53 Melee 9 | . . . . . . 3 . . 1 . . . . . . . . . . . . . . 2 . . . . 3 Guns 35 | . 10 . . . . . . . . . . . . . . . . . . . . . . . . . . . 25 Cannons 83 | . 4 2 25 1 26 . 1 . . . . . . . . . . . . . . . . 1 . . 2 . 21 AOE 43 | . . . . 9 10 9 . . 3 . . . 7 . . . 2 . . . . . . 3 . . . . . Classes Destroyed 25 | 3 5 . 2 . 2 2 1 . 1 . . . 1 . . . 1 . . 1 . . . 1 . . . . 5 Worker 23 | 2 1 . 5 . 4 2 . . . . 4 . . . . 4 . . . . 1 . . . . . . . . Builder 16 | . . . 3 2 4 . . . . . . . . . . 2 . . . . 1 . . . . . . 1 3 Tunneler 8 | 4 . . . 2 1 . . . . . 1 . . . . . . . . . . . . . . . . . . Hauler 17 | . 1 . 6 . 5 2 . . . . . . . . . . . . . . 1 . . . 2 . . . . Recycler 20 | 1 . . 3 3 3 5 . . . . 3 . . . . 1 . . . . . . . . . 1 . . . Minesweeper 4 | . . . . . . . 1 . . . . . 1 . . . 1 1 . . . . . . . . . . . Mechanic 1 | . . . . . . 1 . . . . . . . . . . . . . . . . . . . . . . . Operator 11 | . 1 . 1 . 2 2 . . . . 1 . . . . 1 . . . . . . . . 1 1 1 . . Drone 2 | . . . . . . . . . . . . . . . . . . . . . . . . . . . . . 2 Watcher 29 | . 3 . 3 . 5 1 . . . . 1 . . . . 3 . . . . 4 . . . 1 1 7 . . Swarmer 43 | . 9 2 8 8 7 8 . . . . . . 1 . . . . . . . . . . . . . . . . Grunt 67 | . 5 . 8 2 23 3 1 . . . . . 6 . . . 3 1 . . . . . 4 . . . . 11 Brawler 2 | . . . . . . . . . . . . . 1 . . . . . . . . . . . . . . . 1 Duelist 2 | . . . . . 1 . . . . . . . . . . . . . . . . . . . . . . . 1 Protector 4 | . . . . . . . . . . . . . . . . . . . . 3 . . . . . . . . 1 Researcher 1 | . . . . . . . . . . . . . . . . . . . . . . . . . . . . . 1 Sentry 25 | . . . 9 . 6 1 . . . . . . 1 . . . 1 . . . . . . 1 . . . . 6 Hunter 2 | . . . . . . . . . . . . . . . . . . . . . . . . . . . . . 2 Programmer 20 | . . . . . . 1 . . . . . . . . . . . . . . . . . . . . 2 . 17 Heavy 1 | . . . . . 1 . . . . . . . . . . . . . . . . . . . . . . . . Behemoth 1 | . . . . . . . . . . . . . . . . . . . . . . . . 1 . . . . . Hotshot 1 | . . . . . . . . . . . . . . . . . . . . . . . . . . . . . 1 Decapitator 5 | . . . . . . . . . . . . . . . . . . . . . . . . . . . . . 5 Immortal 4 | . . . . . . . . . . . . . . . . . . . . . . . . . . . . . 4 V-Series 2 | . . . . . . . . . . . . . . . . . . . . . . . . . . . . . 2 Z-Light 4 | . . . . . . . . . 4 . . . . . . . . . . . . . . . . . . . . Decomposer 1 | . . . . . . . 1 . . . . . . . . . . . . . . . . . . . . . . Samaritan 1 | . . . . . . . . . . . . . . . . . 1 . . . . . . . . . . . . Butcher 1 | . . . . . . . . . 1 . . . . . . . . . . . . . . . . . . . . Best Kill Streak 12 | 4 4 1 8 12 5 7 1 . 3 . 2 . 2 . . 3 3 1 . . 2 . . 6 1 1 2 1 5 Combat Bots Only 7 | . 3 1 5 4 4 7 1 . 3 . . . 2 . . . 3 1 . . . . . 6 . . 1 . 5 Max Kills in Single Turn 5 | 1 2 1 1 5 4 3 1 . 3 . 1 . 1 . . 1 1 1 . 1 1 . . 2 1 1 1 1 2 Gunslinging . | . . . . . . . . . . . . . . . . . . . . . . . . . . . . . . Exploded 3 | . . . . 3 3 3 . . 3 . . . 1 . . . 1 . . . . . . 2 . . . . . Melee 1 | . . . . . . 1 . . 1 . . . . . . . . . . . . . . 1 . . . . 1 Uniques/NPCs Destroyed 2 | . . . . . . . . . 1 . . . . . . . . . . . . . . 1 . . . . . Z-Imprinter (-7/Deep Caves) A7 (-4/Extension) Combat | -11 -10 -10 -9 -9 -8 -7 -7 -7 -7 -6 -6 -6 -6 -6 -5 -5 -5 -5 -5 -4 -4 -4 -4 -4 -3 -3 -2 -2 -2 -------- Run | Yrd Mat Min Mat Min Mat Fac Low Zio Dee Pro Fac Low Low Dat Pro Fac Upp Upp War Pro Fac Was Fac Ext Res Tes Res Qua Frg Hostile Shots Fired 1270 | . 48 32 91 18 291 84 2 . 24 . 2 9 9 . 2 . 1 . 1 . 1 . . 6 . . 15 3 631 Missed 455 | . 13 3 21 3 87 47 1 . 9 . 1 4 4 . 1 . . . 1 . . . . 1 . . 10 1 248 Deflected 3 | . . . . . . . . . . . . . . . . . . . . . . . . . . . . . 3 Hits 815 | . 35 29 70 15 204 37 1 . 15 . 1 5 5 . 1 . 1 . . . 1 . . 5 . . 5 2 383 Melee 35 | . . . . . . . . . . . . . . . . . . . . . . . . . . . . . 35 Projectile 780 | . 35 29 70 15 204 37 1 . 15 . 1 5 5 . 1 . 1 . . . 1 . . 5 . . 5 2 348 AOE 16 | . . 10 . . . . . . . . . . . . . . . . . . . . . . . . . . 6 Critical Strikes 57 | . . 1 1 . 8 1 . . . . . . . . . . . . . . . . . . . . . . 46 Actively Blocked 18 | . . . . . . . . . . . . . . . . . . . . . . . . . . . . . 18 Part Disruptions 3 | . . . . . . . . . . . . . . . . . . . . . . . . . . . . . 3 Damage Taken 18999 | . 340 547 915 162 3391 537 15 . 470 . 15 97 128 . 23 . 66 102 2 . 26 . . 82 68 . 73 54 11886 Core 2582 | . 34 164 75 21 470 107 . . 134 . 15 20 37 . 23 . . . . . 26 . . . . . 25 . 1431 Absorbed by Shields 388 | . . . . . . . . . . . . . . . . . . . 1 . . . . 30 . . . . 357 Redirected to Shielding 626 | . . . . . . . . . . . . . . . . . . . . . . . . . . . . . 626 Ignored by Resistances 25 | . . . . . . . . . . . . . . . . . . . . . . . . . . . . . 25 Regen/Repaired (Parts) 2613 | . . . . . 297 11 . . . . . . . . . . . 89 . . . . . 12 68 . . 5 2131 Core Remaining (%) 73 | 100 . 20 . 76 14 . . . . 65 . . . . 88 . . . . 100 . . . 97 . 100 . . . Volleys Fired 711 | 15 45 12 91 14 160 10 26 . 9 . . 1 22 . 1 . 7 2 9 . 2 . . 2 . . 53 3 227 Largest 2 | 2 2 2 2 2 2 1 1 . 1 . . 1 1 . 1 . 1 1 1 . 1 . . 1 . . 1 1 2 Hottest 280 | 40 120 120 136 136 136 33 40 . . . . 43 43 . 43 . 43 43 7 . 98 . . . . . 105 58 280 Shots Fired 1165 | 30 88 22 174 26 303 10 26 . 9 . . 1 22 . 1 . 7 2 9 . 2 . . 2 . . 53 3 375 Gun 352 | 30 56 . . . . . . . . . . . . . . . . . . . . . . . . . 3 . 263 Cannon 725 | . 30 22 174 20 290 . 26 . . . . . . . . . . . . . 2 . . . . . 50 3 108 Launcher 65 | . 2 . . 6 13 10 . . . . . 1 22 . 1 . 7 2 . . . . . . . . . . 1 Special 23 | . . . . . . . . . 9 . . . . . . . . . 9 . . . . 2 . . . . 3 Kinetic 455 | 30 56 . . . 133 . 26 . . . . . . . . . . . . . . . . . . . 11 3 196 Thermal 538 | . 30 22 174 20 157 . . . . . . . . . . . . . . . 2 . . . . . 39 . 94 Explosive 46 | . 2 . . 6 13 10 . . 9 . . . . . . . . . . . . . . 2 . . . . 4 Electromagnetic 117 | . . . . . . . . . . . . 1 22 . 1 . 7 2 . . . . . . . . 3 . 81 Robot Hit Streak 63 | 11 11 7 10 3 11 3 3 . 2 . . 1 2 . . . . . 8 . . . . 4 . . 8 . 63 Robot Miss Streak 15 | 3 3 5 5 7 5 1 5 . 2 . . . . . . . . . 1 . . . . . . . 15 . 4 Penetration Max 2 | . . . . . 1 . . . . . . . . . . . . . . . . . . . . . . . 2 Secondary Targets 10 | . 2 . . . . . . . . . . . . . . . . . . . . . . . . . . . 8 Max Gunslinging Chain 1 | . 1 . . . . . . . . . . . . . . . . . . . . . . . . . . . 1 Shots Hit Robots 830 | 17 49 13 105 8 151 33 13 4 9 . 25 1 7 . 2 16 3 1 8 9 13 . . 15 6 3 22 1 296 Core Hits 443 | 8 26 3 53 18 83 30 2 2 10 . 8 1 19 . 1 8 5 2 1 2 5 . . 12 3 3 11 1 126 Critical Kills 17 | . . . . . 2 . . . . . . . . . . . . . . . . . . . . . . . 15 Critical Parts Destroyed 23 | 1 . . . . . . . . . . . . . . . . . . . . . . . . . . . . 22 Critical Strikes 73 | 1 . . . . 8 . 2 . . . 1 . . . . . . . . 1 1 . . 1 . . 2 . 56 Meltdown 4 | . . . . . 2 . . . . . . . . . . . . . . . . . . . . . . . 2 Destroy 45 | 1 . . . . . . . . . . . . . . . . . . . . . . . . . . . . 44 Blast 10 | . . . . . 6 . 2 . . . . . . . . . . . . . . . . . . . 2 . . Corrupt 9 | . . . . . . . . . . . . . . . . . . . . . . . . . . . . . 9 Sever 5 | . . . . . . . . . . . 1 . . . . . . . . 1 1 . . 1 . . . . 1 Melee Attacks 410 | . . . 2 . 2 76 6 6 14 9 53 3 15 . 10 40 10 4 3 16 28 . 3 17 21 22 29 3 18 Impact 4 | . . . 2 . 2 . . . . . . . . . . . . . . . . . . . . . . . . Slashing 404 | . . . . . . 76 6 6 14 9 53 3 15 . 10 40 10 4 3 16 28 . 3 15 21 22 29 3 18 Piercing . | . . . . . . . . . . . . . . . . . . . . . . . . . . . . . . Sneak Attacks 64 | . . . . . . 11 2 . . . 11 . 1 . . 7 3 1 . 9 4 . . 5 4 2 2 1 1 Combat Hostiles . | . . . . . . . . . . . . . . . . . . . . . . . . . . . . . . Follow-up Attacks 4 | . . . . . . 3 . . . . . . . . . . . . . . . . . . . . . . 1 Damage Inflicted 37260 | 248 705 228 2159 806 5151 2289 459 258 1188 . 1267 99 1129 . 140 923 421 153 6 887 961 . . 1522 616 291 1636 96 13622 Guns 7491 | 248 460 . . . . . . . . . . . . . . . . . . . . . . . . . 19 . 6764 Cannons 13570 | . 245 226 2114 163 4340 . 251 . . . . . . . . . . . . . . . . . . . 699 . 5532 Explosions 6060 | . . . 26 643 805 890 . . 889 . . 99 863 . 9 . 152 36 . . . . . 685 . . 83 . 880 Melee 9830 | . . . . . . 1397 208 258 160 . 1267 . 266 . 131 923 269 117 . 887 961 . . 746 616 291 835 96 402 Ramming 35 | . . 2 19 . 6 2 . . . . . . . . . . . . 6 . . . . . . . . . . Kinetic 9620 | 248 460 . . . 2143 . 251 . . . . . . . . . . . . . . . . . . . 342 . 6176 Thermal 10815 | . 245 226 2114 163 2197 . . . . . . . 87 . . . . . . . . . . . . . 440 . 5343 Explosive 4651 | . . . . 643 805 890 . . 889 . . . . . . . . . . . . . . 685 . . . . 739 Electromagnetic 2003 | . . . 26 . . . . . . . . 99 776 . 9 . 152 36 . . . . . . . . 19 . 886 Impact 32 | . . . . . . . . . . . . . . . . . . . . . . . . . . . . . 32 Slashing 10104 | . . . . . . 1397 208 258 299 . 1267 . 266 . 131 923 269 117 . 887 961 . . 837 616 291 835 96 446 Piercing . | . . . . . . . . . . . . . . . . . . . . . . . . . . . . . . Highest Corruption 30 | . . . 1 1 . . . . . . 1 1 2 . 1 . 1 1 1 . . 9 9 4 . . . . 30 Average Corruption 3 | . . . 1 1 . . . . . . 1 1 1 . 1 . 1 1 1 . . 9 6 4 . . . . 9 Corruption Purged 11 | . . . . . . . . . . . . . 2 . . . . . . . . . 5 . . . . . 4 Corruption Blocked . | . . . . . . . . . . . . . . . . . . . . . . . . . . . . . . Effects 97 | . . . 1 4 . . . . . . 1 1 7 . 3 . 5 3 . . . . 4 16 . . . . 52 Message Errors 19 | . . . . 1 . . . . . . . . 1 . 1 . 2 1 . . . . 2 4 . . . . 7 Matter Fused 17 | . . . . 2 . . . . . . . 1 2 . . . 1 . . . . . . 3 . . . . 8 Heat Flow Errors 9 | . . . . . . . . . . . . . 2 . 1 . 1 . . . . . . 1 . . . . 4 Energy Discharges 17 | . . . . 1 . . . . . . . . 1 . . . 1 1 . . . . 1 4 . . . . 8 Parts Rejected 2 | . . . . . . . . . . . . . . . . . . . . . . . . . . . . . 2 Parts Fused 3 | . . . . . . . . . . . . . . . . . . . . . . . . 2 . . . . 1 Data Loss (minor) 10 | . . . 1 . . . . . . . 1 . 1 . 1 . . 1 . . . . . 1 . . . . 4 Data Loss (major) 5 | . . . . . . . . . . . . . . . . . . . . . . . 1 1 . . . . 3 Misfires 1 | . . . . . . . . . . . . . . . . . . . . . . . . . . . . . 1 Alerts 2 | . . . . . . . . . . . . . . . . . . . . . . . . . . . . . 2 Misdirections 8 | . . . . . . . . . . . . . . . . . . . . . . . . . . . . . 8 Weapon Failures 4 | . . . . . . . . . . . . . . . . . . . . . . . . . . . . . 4 Overload Shots . | . . . . . . . . . . . . . . . . . . . . . . . . . . . . . . Overflow Damage 2406 | . . . 1 . 55 270 138 110 17 . 325 . 58 . 86 230 48 . . 84 209 . . 23 134 . 189 . 429 Projectiles 386 | . . . 1 . 44 . . . 2 . . . . . . . . . . . . . . . . . . . 339 Explosions 105 | . . . . . 11 56 . . 15 . . . 18 . . . . . . . . . . 5 . . . . . Melee 1915 | . . . . . . 214 138 110 . . 325 . 40 . 86 230 48 . . 84 209 . . 18 134 . 189 . 90 Knockbacks 16 | . . . . . 11 . . . . . . . . . . . . . . . . . . . . . . . 5 Impact . | . . . . . . . . . . . . . . . . . . . . . . . . . . . . . . Kinetic 16 | . . . . . 11 . . . . . . . . . . . . . . . . . . . . . . . 5 Secondary . | . . . . . . . . . . . . . . . . . . . . . . . . . . . . . . Self-Inflicted Damage 431 | . . . 43 49 34 112 . . . . . . 39 . . . . 102 3 . . . . . . . . . 49 Shots 12 | . . . 1 2 1 3 . . . . . . 2 . . . . 2 . . . . . . . . . . 1 Rammed 7 | . . 1 2 . 2 1 . . . . . . . . . . . . 1 . . . . . . . . . . Targets Rammed 9 | . . 1 4 . 2 1 . . . . . . . . . . . . 1 . . . . . . . . . . Kicked . | . . . . . . . . . . . . . . . . . . . . . . . . . . . . . . Crushed 2 | . . . 2 . . . . . . . . . . . . . . . . . . . . . . . . . . Highest Temperature 439 | . 320 335 376 120 305 17 14 65 12 . 99 302 140 . 152 . 240 . . 115 117 7 5 256 439 43 109 15 329 Average Temperature 61 | . 116 156 100 52 69 2 4 10 5 . 26 162 73 . 95 . 129 . . 65 16 2 2 14 156 11 39 15 119 Received Heat Transfer 2409 | . 75 . 279 . 1071 78 9 . 135 . . 39 36 . . . 9 . . . . . . 13 . . 9 . 656 Effects 9 | . . 2 5 . 2 . . . . . . . . . . . . . . . . . . . . . . . . Shutdowns 2 | . . 1 1 . . . . . . . . . . . . . . . . . . . . . . . . . . Energy Bleed 3 | . . 1 2 . . . . . . . . . . . . . . . . . . . . . . . . . . Interference 4 | . . . 2 . 2 . . . . . . . . . . . . . . . . . . . . . . . . Siege Activations . | . . . . . . . . . . . . . . . . . . . . . . . . . . . . . . Martial Activations . | . . . . . . . . . . . . . . . . . . . . . . . . . . . . . . Shielding Activations . | . . . . . . . . . . . . . . . . . . . . . . . . . . . . . . Robots Disrupted 2 | . . . . . . . . . . . . . 1 . . . . . . . . . . . . . . . 1 Combat Hostiles 2 | . . . . . . . . . . . . . 1 . . . . . . . . . . . . . . . 1 Robots Corrupted 7 | . . . . . . . . . . . . . 2 . . . 2 1 . . . . . . . . . . 2 Combat Hostiles 7 | . . . . . . . . . . . . . 2 . . . 2 1 . . . . . . . . . . 2 Parts Fried 10 | . . . . . . . . . . . . . 5 . . . 1 2 . . . . . . . . . . 2 Impact Corruptions . | . . . . . . . . . . . . . . . . . . . . . . . . . . . . . . Robots Melted 4 | . . . . . 2 . . . . . . . . . . . . . . . . . . . . . . . 2 Combat Hostiles 4 | . . . . . 2 . . . . . . . . . . . . . . . . . . . . . . . 2 Parts Melted 15 | . . . 2 . 11 . . . . . . . . . . . . . . . . . . . . . . . 2 Heat Transferred 13284 | . 518 481 4033 296 3959 . . . . . . . 100 . . . . . . . . . . . . . 470 . 3427 Parts Sabotaged . | . . . . . . . . . . . . . . . . . . . . . . . . . . . . . . Parts Stolen . | . . . . . . . . . . . . . . . . . . . . . . . . . . . . . . Parts Stripped . | . . . . . . . . . . . . . . . . . . . . . . . . . . . . . . Power Chain Reactions 5 | . . . 1 . . . . . . . . . 1 . . . . 1 . . . . . . . . 1 . 1 Alert | -11 -10 -10 -9 -9 -8 -7 -7 -7 -7 -6 -6 -6 -6 -6 -5 -5 -5 -5 -5 -4 -4 -4 -4 -4 -3 -3 -2 -2 -2 ------- Run | Yrd Mat Min Mat Min Mat Fac Low Zio Dee Pro Fac Low Low Dat Pro Fac Upp Upp War Pro Fac Was Fac Ext Res Tes Res Qua Frg Maximum Alert Level 4 | . . . 2 2 3 2 . . . . 2 . . . . . . . . . . . . . . . . . 4 Low Security (%) 62 | 100 100 100 39 21 42 47 . . . . 29 . . . . 100 . . . . 100 100 100 100 100 100 100 100 39 Level 1 18 | . . . 43 56 23 33 . . . . 36 . . . . . . . . . . . . . . . . . 13 Level 2 11 | . . . 17 22 27 18 . . . . 34 . . . . . . . . . . . . . . . . . 2 Level 3 7 | . . . . . 6 . . . . . . . . . . . . . . . . . . . . . . . 42 Level 4 . | . . . . . . . . . . . . . . . . . . . . . . . . . . . . . 1 Level 5 . | . . . . . . . . . . . . . . . . . . . . . . . . . . . . . . High Security . | . . . . . . . . . . . . . . . . . . . . . . . . . . . . . . Max Security . | . . . . . . . . . . . . . . . . . . . . . . . . . . . . . . Peak Influence 1157 | 10 121 69 543 456 849 467 . . . . 461 . . . . 60 . . . . 74 19 2 162 103 74 188 184 1157 Initial 450 | . . 37 8 210 51 373 . . . . 450 . . . . . . . . . 23 19 . . 60 4 6 105 92 Average 213 | 2 45 15 240 294 300 250 . . . . 256 . . . . 12 . . . . 32 13 . 39 58 44 96 148 486 Influence Increases 10208 | 35 495 223 1081 296 1598 740 25 15 . . 666 45 655 . 5 227 175 100 . 45 204 . 6 383 129 159 582 119 2200 Destroy 0b10 Robot/C 3720 | . 280 140 540 200 760 280 20 . . . . . 180 . . . 80 20 . . . . . 160 . . 40 . 1020 Destroy 0b10 Robot/NC 685 | 35 30 . 105 35 120 65 5 15 . . 45 . 5 . 5 55 5 5 . . 35 . . 15 15 15 40 5 30 Destroy Leader 784 | . 68 30 178 30 190 66 . . . . 2 . 20 . . 6 . . . . 10 . . 22 6 2 34 . 120 Allied During Kill 87 | . . 23 7 . . 2 . . . . . . . . . . . . . . . . . 55 . . . . . Successful Hack 293 | . 12 . 38 . 27 53 . . . . 65 . . . . 8 . . . . . . . . 69 . 21 . . Select Force Hacks 150 | . 60 . 60 . 30 . . . . . . . . . . . . . . . . . . . . . . . . Disable Machine 690 | . 30 15 45 . 165 30 . . . . 60 . . . . 15 . . . . 15 . . . . 90 . 30 195 Anti-Garrison Action 150 | . . . . . . . . . . . . . . . . . . . . . . . . . . . . . 150 Destroy Structure 859 | . 15 . 18 31 141 64 . . . . 14 . . . . 38 . . . . 24 . 6 26 24 22 132 9 295 Advance Influence 450 | . . . . . . . . . . . 450 . . . . . . . . . . . . . . . . . . Partial Spotted 630 | . . . 15 . . 120 . . . . 30 . . . . 105 . . . . 75 . . 15 15 30 75 . 150 Lose Combat Pursuer 1710 | . . 15 75 . 165 60 . . . . . 45 450 . . . 90 75 . 45 45 . . 90 . . 240 75 240 Influence Decreases 9063 | 35 397 298 564 704 907 1096 420 87 . . 610 101 470 185 5 187 139 176 . 8 184 57 4 269 236 155 407 143 1219 Entered New Map 1696 | . . 61 15 330 81 450 174 72 . . . 21 . 185 . . 15 15 . . 14 38 . 2 56 5 7 83 72 Time Decay 6163 | 35 397 217 509 374 706 526 246 15 . . 410 70 460 . 5 187 124 161 . 8 170 19 4 128 180 150 400 50 612 Search Patrol Dispatched 200 | . . . . . . . . . . . 200 . . . . . . . . . . . . . . . . . . Lost Part 745 | . . . . . 120 60 . . . . . 10 10 . . . . . . . . . . . . . . 10 535 Lost Ally 259 | . . 20 40 . . 60 . . . . . . . . . . . . . . . . . 139 . . . . . Squads Dispatched 67 | . 3 . 4 1 9 12 . . . . 7 . . . . 6 . . . . 2 . . 1 4 1 1 1 15 Investigation 20 | . 2 . 2 . 2 5 . . . . 3 . . . . 3 . . . . . . . . 3 . . . . Extermination 18 | . . . . . . 3 . . . . 3 . . . . 2 . . . . 1 . . . 1 1 . . 7 Reinforcement 20 | . 1 . 2 1 6 3 . . . . 1 . . . . 1 . . . . 1 . . 1 . . 1 1 1 Assault 8 | . . . . . 1 1 . . . . . . . . . . . . . . . . . . . . . . 6 Garrison 1 | . . . . . . . . . . . . . . . . . . . . . . . . . . . . . 1 Intercept . | . . . . . . . . . . . . . . . . . . . . . . . . . . . . . . Searches Triggered 2 | . . . . . . . . . . . 2 . . . . . . . . . . . . . . . . . . Data Miner Redirects 3 | . . . . . . . . . . . . . . . . . . . . . . . . . . . . . 3 Construction Impeded 6 | . . . 1 1 2 . . . . . . . . . . . . . . . . . . 1 . . . . 1 Haulers Reinforced 1 | . . . . . . 1 . . . . . . . . . . . . . . . . . . . . . . . Active Scanning Responses . | . . . . . . . . . . . . . . . . . . . . . . . . . . . . . . Cargo Convoy Interrupts . | . . . . . . . . . . . . . . . . . . . . . . . . . . . . . . Stealth | -11 -10 -10 -9 -9 -8 -7 -7 -7 -7 -6 -6 -6 -6 -6 -5 -5 -5 -5 -5 -4 -4 -4 -4 -4 -3 -3 -2 -2 -2 --------- Run | Yrd Mat Min Mat Min Mat Fac Low Zio Dee Pro Fac Low Low Dat Pro Fac Upp Upp War Pro Fac Was Fac Ext Res Tes Res Qua Frg Distress Signals 20 | . 1 . 2 . 6 . . . . 2 . . . . . . . . . . 1 . . 3 . 1 4 . . Communications Jammed 2 | . . . . . . . . . . . . . . . . . . . . . . . . . . . . . 2 Distress Signals . | . . . . . . . . . . . . . . . . . . . . . . . . . . . . . . Times Spotted 440 | . 18 5 42 9 60 43 1 . 5 2 8 6 26 . 2 6 5 3 22 3 6 6 . 12 5 2 30 8 105 Peak Tracking Total 12 | . 4 2 6 4 5 7 1 . 4 2 3 6 4 . 2 2 4 3 12 3 2 6 . 6 2 4 9 4 10 Tactical Retreats 73 | . . 1 4 . 10 7 . . . . . 1 16 . 1 . 2 3 . 2 2 . . 4 . . 7 2 11 ECM-based Alert Blocks 21 | . . . . . . 11 . . . . . . . . 2 . . . . . . . . . . . . . 8 Traps | -11 -10 -10 -9 -9 -8 -7 -7 -7 -7 -6 -6 -6 -6 -6 -5 -5 -5 -5 -5 -4 -4 -4 -4 -4 -3 -3 -2 -2 -2 ------- Run | Yrd Mat Min Mat Min Mat Fac Low Zio Dee Pro Fac Low Low Dat Pro Fac Upp Upp War Pro Fac Was Fac Ext Res Tes Res Qua Frg Traps Triggered 24 | . 1 . 3 . . 1 . . . . 2 . . . . . . . . . 1 . 1 5 1 . . . 9 Indirectly . | . . . . . . . . . . . . . . . . . . . . . . . . . . . . . . Trap Hack Attempts . | . . . . . . . . . . . . . . . . . . . . . . . . . . . . . . Triggered . | . . . . . . . . . . . . . . . . . . . . . . . . . . . . . . Disarmed . | . . . . . . . . . . . . . . . . . . . . . . . . . . . . . . Reprogrammed . | . . . . . . . . . . . . . . . . . . . . . . . . . . . . . . Reused 12 | . . . . . . . . . . . . . 4 . . . 6 2 . . . . . . . . . . . Traps Extracted . | . . . . . . . . . . . . . . . . . . . . . . . . . . . . . . Installed 23 | . . . . . . . . . . . . . 9 . . . 10 4 . . . . . . . . . . . Triggered 12 | . . . . . . . . . . . . . 4 . . . 6 2 . . . . . . . . . . . Most Traps Carried 5 | . . . . . . . . . . . . . 5 . . . 4 1 . . . . . . . . . . . Time Bombs Activated 3 | . . . . . . . . . . . . . . . 3 . . . . . . . . . . . . . . Exploded 3 | . . . . . . . . . . . . . . . 3 . . . . . . . . . . . . . . Machines | -11 -10 -10 -9 -9 -8 -7 -7 -7 -7 -6 -6 -6 -6 -6 -5 -5 -5 -5 -5 -4 -4 -4 -4 -4 -3 -3 -2 -2 -2 ---------- Run | Yrd Mat Min Mat Min Mat Fac Low Zio Dee Pro Fac Low Low Dat Pro Fac Upp Upp War Pro Fac Was Fac Ext Res Tes Res Qua Frg Machines Disabled 58 | . 2 1 3 . 11 2 . . 1 . 4 . . . . 1 1 . 1 . 1 . . 2 . 6 . 2 20 Max in Single Turn 2 | . 1 . 2 . 2 1 . . 1 . 1 . . . . 1 1 . 1 . 1 . . 2 . 1 . 1 2 Garrison Access 10 | . . . . . 1 3 . . . . 1 . . . . . . . . . 1 . . . . 1 2 . 1 Machines Repaired . | . . . . . . . . . . . . . . . . . . . . . . . . . . . . . . Machines Dismantled 1 | . . . . . . . . . . . . . . . . . . . 1 . . . . . . . . . . Machines Sabotaged . | . . . . . . . . . . . . . . . . . . . . . . . . . . . . . . Overloaded Fab Kills . | . . . . . . . . . . . . . . . . . . . . . . . . . . . . . . Hacking | -11 -10 -10 -9 -9 -8 -7 -7 -7 -7 -6 -6 -6 -6 -6 -5 -5 -5 -5 -5 -4 -4 -4 -4 -4 -3 -3 -2 -2 -2 --------- Run | Yrd Mat Min Mat Min Mat Fac Low Zio Dee Pro Fac Low Low Dat Pro Fac Upp Upp War Pro Fac Was Fac Ext Res Tes Res Qua Frg Machines Accessed 115 | . 9 . 14 . 11 17 . . . . 19 1 3 4 . 7 4 . . . 6 . 1 1 10 2 3 . 3 Terminals 55 | . 7 . 10 . 6 5 . . . . 10 . . . . 3 . . . . 1 . 1 1 7 1 1 . 2 Fabricators 14 | . . . . . . 3 . . . . 5 . . . . 4 . . . . 1 . . . 1 . . . . Repair Stations 6 | . . . . . 1 4 . . . . . . . . . . . . . . . . . . 1 . . . . Recycling Units 9 | . 2 . 2 . 1 . . . . . 2 . . . . . . . . . 2 . . . . . . . . Scanalyzers 8 | . . . 2 . 2 2 . . . . 1 . . . . . . . . . 1 . . . . . . . . Garrison Access 11 | . . . . . 1 3 . . . . 1 . . . . . . . . . 1 . . . 1 1 2 . 1 Total Hacks 332 | . 26 . 42 . 45 36 . . . . 49 2 9 28 . 36 8 . . . 14 . 2 1 20 2 6 . 6 Successful 209 | . 13 . 29 . 33 19 . . . . 25 2 9 28 . 21 8 . . . 6 . 1 1 5 1 3 . 5 Failed 121 | . 13 . 13 . 11 16 . . . . 24 . . . . 15 . . . . 8 . 1 . 15 1 3 . 1 Catastrophic 21 | . . . 1 . . 3 . . . . 7 . . . . 4 . . . . . . . . 4 1 . . 1 Database Lockouts 2 | . . . . . 1 1 . . . . . . . . . . . . . . . . . . . . . . . Manual 116 | . 21 . 26 . 14 6 . 5 . . 20 . . . . 17 . . . . 1 . . 1 4 1 . . . Terminals 128 | . 18 . 26 . 14 9 . . . . 23 . . . . 10 . . . . 1 . 2 1 17 1 1 . 5 Fabricators 53 | . . . . . . 9 . . . . 16 . . . . 26 . . . . 1 . . . 1 . . . . Repair Stations 19 | . . . . . 8 10 . . . . . . . . . . . . . . . . . . 1 . . . . Recycling Units 25 | . 8 . 5 . 2 . . . . . 4 . . . . . . . . . 6 . . . . . . . . Scanalyzers 45 | . . . 11 . 20 5 . . . . 5 . . . . . . . . . 4 . . . . . . . . Garrison Access 15 | . . . . . 1 3 . . . . 1 . . . . . . . . . 2 . . . 1 1 5 . 1 Terminal Hacks 77 | . 1 . 4 . 1 2 . . . . 8 2 9 28 . 3 8 . . . . . 1 1 3 . 1 . 5 Record 30 | . . . . . . . . . . . . 2 7 11 . . 6 . . . . . . . . . . . 4 Part Schematic 15 | . . . 1 . . . . . . . 2 . . 11 . 1 . . . . . . . . . . . . . Robot Schematic 3 | . . . . . . . . . . . . . . 3 . . . . . . . . . . . . . . . Robot Analysis 4 | . 1 . 1 . . . . . . . . . . . . . . . . . . . . . 2 . . . . Prototype ID Bank 3 | . . . . . . . . . . . . . . 3 . . . . . . . . . . . . . . . Open Door 4 | . . . . . . . . . . . . . 2 . . . 2 . . . . . . . . . . . . Branch Access Points 5 | . . . . . . . . . . . 1 . . . . 1 . . . . . . 1 . 1 . 1 . . Terminal Index 1 | . . . . . . . . . . . 1 . . . . . . . . . . . . . . . . . . Scanalyzer Index 1 | . . . . . . . . . . . 1 . . . . . . . . . . . . . . . . . . Locate Traps 7 | . . . 2 . 1 1 . . . . 1 . . . . 1 . . . . . . . 1 . . . . . Hauler Manifests 2 | . . . . . . 1 . . . . 1 . . . . . . . . . . . . . . . . . . Zone Layout 1 | . . . . . . . . . . . 1 . . . . . . . . . . . . . . . . . . Proto ID Catalog 1 | . . . . . . . . . . . . . . . . . . . . . . . . . . . . . 1 Fabricator Hacks 25 | . . . . . . 3 . . . . 5 . . . . 16 . . . . 1 . . . . . . . . Network Status 4 | . . . . . . 1 . . . . 1 . . . . 1 . . . . 1 . . . . . . . . Load Schematic 13 | . . . . . . 1 . . . . 3 . . . . 9 . . . . . . . . . . . . . Build 8 | . . . . . . 1 . . . . 1 . . . . 6 . . . . . . . . . . . . . Repair Station Hacks 13 | . . . . . 7 6 . . . . . . . . . . . . . . . . . . . . . . . Scan Component 8 | . . . . . 4 4 . . . . . . . . . . . . . . . . . . . . . . . Repair 5 | . . . . . 3 2 . . . . . . . . . . . . . . . . . . . . . . . Recycling Unit Hacks 7 | . 2 . 1 . 1 . . . . . 2 . . . . . . . . . 1 . . . . . . . . Retrieve Components 7 | . 2 . 1 . 1 . . . . . 2 . . . . . . . . . 1 . . . . . . . . Scanalyzer 34 | . . . 10 . 14 3 . . . . 4 . . . . . . . . . 3 . . . . . . . . Insert Component 14 | . . . 4 . 5 1 . . . . 3 . . . . . . . . . 1 . . . . . . . . Analyze 13 | . . . 3 . 8 1 . . . . 1 . . . . . . . . . . . . . . . . . . Retrieve Study 7 | . . . 3 . 1 1 . . . . . . . . . . . . . . 2 . . . . . . . . Garrison Access Hacks 9 | . . . . . 1 3 . . . . 1 . . . . . . . . . 1 . . . . 1 2 . . Seal Access 9 | . . . . . 1 3 . . . . 1 . . . . . . . . . 1 . . . . 1 2 . . Unauthorized Hacks 44 | . 10 . 14 . 9 2 . . . . 5 . . . . 2 . . . . . . . . 2 . . . . Terminals 31 | . 8 . 12 . 8 . . . . . 2 . . . . . . . . . . . . . 1 . . . . Assimilate 3 | . . . . . . . . . . . 2 . . . . . . . . . . . . . 1 . . . . Botnet 6 | . 2 . 2 . 2 . . . . . . . . . . . . . . . . . . . . . . . . Operators 2 | . . . 1 . 1 . . . . . . . . . . . . . . . . . . . . . . . . Skim 20 | . 6 . 9 . 5 . . . . . . . . . . . . . . . . . . . . . . . . Fabricators 7 | . . . . . . 2 . . . . 3 . . . . 2 . . . . . . . . . . . . . Recompile 7 | . . . . . . 2 . . . . 3 . . . . 2 . . . . . . . . . . . . . Repair Stations 1 | . . . . . . . . . . . . . . . . . . . . . . . . . 1 . . . . Patch 1 | . . . . . . . . . . . . . . . . . . . . . . . . . 1 . . . . Recycling Units 5 | . 2 . 2 . 1 . . . . . . . . . . . . . . . . . . . . . . . . Tunnel 5 | . 2 . 2 . 1 . . . . . . . . . . . . . . . . . . . . . . . . Scanalyzers . | . . . . . . . . . . . . . . . . . . . . . . . . . . . . . . Garrison Access . | . . . . . . . . . . . . . . . . . . . . . . . . . . . . . . Data Cores Recovered 3 | . . . . . 1 1 . . . . . . . . . . . . . . . . . . . 1 . . . Used . | . . . . . . . . . . . . . . . . . . . . . . . . . . . . . . Hacking Detections 72 | . 9 . 13 . 5 12 . . . . 12 . . . . 4 . . . . 5 . 1 . 7 1 2 . 1 Full Trace Events 6 | . . . . . 1 2 . . . . . . . . . 1 . . . . . . . . 2 . . . . Feedback Events . | . . . . . . . . . . . . . . . . . . . . . . . . . . . . . . Feedback Blocked . | . . . . . . . . . . . . . . . . . . . . . . . . . . . . . . Robot Schematics Acquired 8 | . . . . . . . . 4 . . . . . 3 . . . . . . . . . . . . . . 1 Robots Built 4 | . . . . . . 4 . . . . . . . . . . . . . . . . . . . . . . . Authchips . | . . . . . . . . . . . . . . . . . . . . . . . . . . . . . . Time 67 | . . . . . . 67 . . . . . . . . . . . . . . . . . . . . . . . Total Robot Build Rating 16 | . . . . . . 16 . . . . . . . . . . . . . . . . . . . . . . . Part Schematics Acquired 38 | . . . 4 . 3 1 . 13 . . 3 . . 11 . 1 . . . . . . . . . . . . 2 Parts Built 8 | . . . . . . . . . . . 2 . . . . 6 . . . . . . . . . . . . . Authchips 7 | . . . . . . . . . . . 1 . . . . 6 . . . . . . . . . . . . . Time 430 | . . . . . . . . . . . 64 . . . . 366 . . . . . . . . . . . . . Total Part Build Rating 45 | . . . . . . . . . . . 16 . . . . 29 . . . . . . . . . . . . . Part Studies Acquired 7 | . . . 3 . 1 1 . . . . . . . . . . . . . . 2 . . . . . . . . Parts Repaired 5 | . . . . . 3 2 . . . . . . . . . . . . . . . . . . . . . . . Time 323 | . . . . . 134 189 . . . . . . . . . . . . . . . . . . . . . . . Parts Recycled . | . . . . . . . . . . . . . . . . . . . . . . . . . . . . . . Recycled Matter . | . . . . . . . . . . . . . . . . . . . . . . . . . . . . . . Retrieved Matter . | . . . . . . . . . . . . . . . . . . . . . . . . . . . . . . Retrieved Components 34 | . 12 . 10 . 9 . . . . . . . . . . . . . . . 3 . . . . . . . . Parts Scanalyzed 8 | . . . 3 . 3 1 . . . . 1 . . . . . . . . . . . . . . . . . . Part Schematics Acquired 8 | . . . 3 . 3 1 . . . . 1 . . . . . . . . . . . . . . . . . . Parts Damaged 2 | . . . . . 2 . . . . . . . . . . . . . . . . . . . . . . . . Bothacking | -11 -10 -10 -9 -9 -8 -7 -7 -7 -7 -6 -6 -6 -6 -6 -5 -5 -5 -5 -5 -4 -4 -4 -4 -4 -3 -3 -2 -2 -2 ------------ Run | Yrd Mat Min Mat Min Mat Fac Low Zio Dee Pro Fac Low Low Dat Pro Fac Upp Upp War Pro Fac Was Fac Ext Res Tes Res Qua Frg Used RIF Installer . | . . . . . . . . . . . . . . . . . . . . . . . . . . . . . . Robots Hacked 1 | . . . . . . . . . . . . . . . . . . . . . . . . 1 . . . . . Non-combat . | . . . . . . . . . . . . . . . . . . . . . . . . . . . . . . Combat 1 | . . . . . . . . . . . . . . . . . . . . . . . . 1 . . . . . Robot Hacks Applied 1 | . . . . . . . . . . . . . . . . . . . . . . . . 1 . . . . . parse_system 1 | . . . . . . . . . . . . . . . . . . . . . . . . 1 . . . . . Relay Couplers Released . | . . . . . . . . . . . . . . . . . . . . . . . . . . . . . . Fabnet Peak Effective % . | . . . . . . . . . . . . . . . . . . . . . . . . . . . . . . Robots Rewired 5 | . . . . . . . . . . . . . . . . . . . 5 . . . . . . . . . . Allies Hacked . | . . . . . . . . . . . . . . . . . . . . . . . . . . . . . . Hacks Repelled . | . . . . . . . . . . . . . . . . . . . . . . . . . . . . . . Allies | -11 -10 -10 -9 -9 -8 -7 -7 -7 -7 -6 -6 -6 -6 -6 -5 -5 -5 -5 -5 -4 -4 -4 -4 -4 -3 -3 -2 -2 -2 -------- Run | Yrd Mat Min Mat Min Mat Fac Low Zio Dee Pro Fac Low Low Dat Pro Fac Upp Upp War Pro Fac Was Fac Ext Res Tes Res Qua Frg Total Allies 32 | . . 4 . . . 4 . 6 . . 2 . . . . . . . 5 . . . . 10 1 . . . . Largest Group 6 | . . 4 2 . . 4 . 6 6 . 1 . . . . . . . 5 3 . . . 6 1 . . . . Highest-Rated Group 369 | . . 71 24 . . 48 . 151 151 . 26 . . . . . . . 301 192 . . . 369 45 . . . . Highest-Rated Ally 159 | . . 31 16 . . 12 . 31 31 . 26 . . . . . . . 68 64 . . . 159 45 . . . . Total Orders 19 | . . 2 . . . . . . . . . . . . . . . . 13 3 . . . . 1 . . . . STAY 3 | . . . . . . . . . . . . . . . . . . . 1 1 . . . . 1 . . . . FOLLOW 4 | . . . . . . . . . . . . . . . . . . . 3 1 . . . . . . . . . AID 7 | . . 2 . . . . . . . . . . . . . . . . 5 . . . . . . . . . . EXPLORE 3 | . . . . . . . . . . . . . . . . . . . 3 . . . . . . . . . . RETURN 2 | . . . . . . . . . . . . . . . . . . . 1 1 . . . . . . . . . Ally Attacks 165 | . . 12 14 . . 22 . . 43 . . . . . . . . . 5 . . . . 69 . . . . . Total Damage 3571 | . . 117 178 . . 304 . . 549 . . . . . . . . . 226 . . . . 2197 . . . . . Kills 23 | . . 5 2 . . 2 . . 9 . . . . . . . . . . . . . . 5 . . . . . Allies Corrupted . | . . . . . . . . . . . . . . . . . . . . . . . . . . . . . . Allies Melted 1 | . . . . . . . . . . . . . . . . . . . . . . . . 1 . . . . . Intel | -11 -10 -10 -9 -9 -8 -7 -7 -7 -7 -6 -6 -6 -6 -6 -5 -5 -5 -5 -5 -4 -4 -4 -4 -4 -3 -3 -2 -2 -2 ------- Run | Yrd Mat Min Mat Min Mat Fac Low Zio Dee Pro Fac Low Low Dat Pro Fac Upp Upp War Pro Fac Was Fac Ext Res Tes Res Qua Frg Active Infowar (turns) 22341 | 72 2413 1329 1647 868 1319 881 526 383 243 448 996 207 1135 30 622 944 655 494 620 524 358 41 127 622 370 312 1048 116 2991 Optics 3567 | . . . . . . . . . . . . . . . . . . . . . . . . . . . 460 116 2991 Sensors 11560 | . . . . . . 310 526 383 243 448 996 207 1135 30 622 944 655 494 522 524 358 41 127 622 370 312 1048 116 527 Structural 6192 | . . . . . . . . . . . . . . . . 367 655 494 620 524 358 41 127 622 370 312 1048 116 538 Seismic 8120 | 72 2413 1329 1647 868 1319 472 . . . . . . . . . . . . . . . . . . . . . . . Machine Analysis 518 | . . . . . . . . . . . . . . . . . . . . . . . . . . . 518 . . Jamming 746 | . . . . . . . . . . . . . . . . . . . . . . . . . . . . 3 743 ECM 375 | . . . . . . 99 . . . . . . . . 43 . . . . . . . . . . . . . 233 Robot Analysis Total 4 | . 1 . 1 . . . . . . . . . . . . . . . . . . . . . 2 . . . . Derelict Logs Recovered 12 | . . 1 . 3 . . . 1 . . . . 1 . 1 . 2 2 . 1 . . . . . . . . . Drone Launches 6 | . . . . . . . . . . . . . . . . . . . 3 3 . . . . . . . . . Drone Recoveries 6 | . . . . . . . . . . . . . . . . . . . 3 3 . . . . . . . . . Exploration | -11 -10 -10 -9 -9 -8 -7 -7 -7 -7 -6 -6 -6 -6 -6 -5 -5 -5 -5 -5 -4 -4 -4 -4 -4 -3 -3 -2 -2 -2 ------------- Run | Yrd Mat Min Mat Min Mat Fac Low Zio Dee Pro Fac Low Low Dat Pro Fac Upp Upp War Pro Fac Was Fac Ext Res Tes Res Qua Frg Turns Passed 26637 | 148 2413 1329 2933 868 3280 1467 527 383 540 448 996 211 1190 30 622 944 655 524 620 524 358 41 127 622 370 312 1048 116 2991 Spaces Moved 32530 | 75 823 601 1238 482 1281 2510 489 965 693 565 2604 599 2033 83 1263 1531 1469 1182 858 790 1126 170 180 715 936 1122 2935 483 2729 Core 154 | 5 . . . . . 146 . . . . . . . . . . . . . . . . . . . . . . 3 Treads 2619 | 3 . . 1134 482 939 . . . . . . . . . . . . . . . . . . . . . . . 61 Legs 278 | . . . . . . . . . . . . . . . . . . . . . . . . . . . . . 278 Wheels 1996 | 67 823 601 104 . 342 5 . . . . . . . . . . . . . . . . . . . . . . 54 Hover 1851 | . . . . . . . . . 377 565 7 . . . . . . . . . . . . . . . . . 902 Flight 25632 | . . . . . . 2359 489 965 316 . 2597 599 2033 83 1263 1531 1469 1182 858 790 1126 170 180 715 936 1122 2935 483 1431 Fastest Speed 5 | 50 95 150 150 160 100 20 23 23 23 56 24 24 24 36 36 6 20 20 20 5 5 17 17 5 14 5 17 5 5 Average Speed 45 | 92 157 150 159 160 151 36 24 23 48 56 25 24 28 36 36 24 21 21 20 19 16 17 17 17 16 16 17 16 49 Slowest Speed 750 | 160 200 150 240 160 240 750 106 23 130 56 56 25 36 36 36 89 88 101 20 20 17 17 17 88 17 17 17 17 320 Overloaded Moves 92 | . . . . . . 7 . . . . . . . . . 2 . . . 13 8 . . 7 . 5 . 9 41 Propulsion Burnouts . | . . . . . . . . . . . . . . . . . . . . . . . . . . . . . . Robots Hopped 59 | . . . . . . 2 . . . . 16 . 1 . . 3 . . . . 7 . . 7 3 6 12 2 . Potential Cave-ins . | . . . . . . . . . . . . . . . . . . . . . . . . . . . . . . Cave-ins Triggered . | . . . . . . . . . . . . . . . . . . . . . . . . . . . . . . Teleports 1 | . . . . . . . . . . . . . . . . . . . . . . . . . . . . . 1 Exploration Rate (%) 68 | 3 93 98 96 98 85 63 28 85 74 71 57 82 98 69 99 36 95 88 86 80 35 92 4 75 30 83 54 55 32 Regions Visited 29 Branch Regions 18 Pre-discovered Areas 18 | . 3 . 6 1 3 . . 2 . . . . . 1 . . 1 1 . . . . . . . . . . . Known Exits Taken 26 | . 1 1 1 1 1 1 1 1 1 1 1 1 1 1 1 1 1 1 1 1 . . 1 1 1 1 1 1 . Unknown Exits Taken 1 | 1 . . . . . . . . . . . . . . . . . . . . . . . . . . . . . Scrap Searched 31 | . . 2 . 1 . . 5 3 . . . 1 3 . 4 . 5 5 . 2 . . . . . . . . . Spaces Dug 200 | . . . 2 . 35 28 1 . 1 9 14 3 5 . 8 19 6 3 . 7 12 . 3 1 12 11 13 2 5 Terrain Destroyed 633 | . 12 . 6 46 153 61 12 . 112 9 14 3 5 . 8 19 6 6 . 7 12 . 3 14 12 11 42 3 57 Melee 161 | . . . 2 . 2 28 1 . 1 9 14 3 5 . 8 19 6 3 . 7 10 . 3 1 12 11 11 2 3 Projectile 168 | . . . . 2 66 . 11 . 5 . . . . . . . . . . . 2 . . . . . 28 1 53 AOE 304 | . 12 . 4 44 85 33 . . 106 . . . . . . . . 3 . . . . . 13 . . 3 . 1 Terrain Rammed . | . . . . . . . . . . . . . . . . . . . . . . . . . . . . . . Walls Destroyed . | . . . . . . . . . . . . . . . . . . . . . . . . . . . . . . Machines Disabled . | . . . . . . . . . . . . . . . . . . . . . . . . . . . . . . Actions | -11 -10 -10 -9 -9 -8 -7 -7 -7 -7 -6 -6 -6 -6 -6 -5 -5 -5 -5 -5 -4 -4 -4 -4 -4 -3 -3 -2 -2 -2 --------- Run | Yrd Mat Min Mat Min Mat Fac Low Zio Dee Pro Fac Low Low Dat Pro Fac Upp Upp War Pro Fac Was Fac Ext Res Tes Res Qua Frg Total 42636 | 120 1856 1005 2023 551 2302 2942 857 1117 863 682 2835 658 2607 82 1416 2041 1800 1439 1292 1132 1242 181 270 1181 1113 1204 3372 507 3946 Wait 7885 | 17 938 384 625 40 757 285 329 139 95 107 140 50 463 . 122 438 257 233 384 325 67 12 84 395 141 46 313 17 682 Move 32390 | 74 822 600 1237 481 1280 2505 488 964 692 564 2571 598 2030 82 1262 1524 1468 1181 858 789 1112 169 179 700 929 1109 2916 478 2728 Hop 53 | . . . . . . 2 . . . . 16 . 1 . . 3 . . . . 7 . . 7 3 6 6 2 . Pick Up 218 | 7 26 3 14 1 16 18 . 2 9 . 13 . 21 . 7 10 20 5 3 . 5 . . . . 4 11 . 23 Fast Attach 173 | 6 . . 1 . 10 17 3 1 12 1 6 . 5 . . 7 2 1 10 . 3 . 3 1 2 3 5 . 74 Attach 86 | 1 . 3 2 . 8 6 . 1 7 . 5 2 4 . . 7 3 2 . . 2 . . . 2 . 5 2 24 Detach 38 | . . . . . . 3 . . 1 . . 1 2 . 1 . 2 1 1 . 2 . . . 2 . 2 1 19 Swap 222 | . 10 1 27 11 43 13 2 2 10 . 6 3 3 . 2 3 . 1 3 2 8 . . 2 8 6 17 1 38 Drop 280 | . 15 1 20 4 24 16 3 3 14 1 15 . 24 . 8 9 21 5 13 . 6 . 1 . 5 8 15 . 49 Fire 711 | 15 45 12 91 14 160 10 26 . 9 . . 1 22 . 1 . 7 2 9 . 2 . . 2 . . 53 3 227 Melee 396 | . . . 2 . 2 66 6 5 14 9 53 3 15 . 10 40 10 4 3 16 28 . 3 17 21 22 29 3 15 Ram 2 | . . . . . 1 1 . . . . . . . . . . . . . . . . . . . . . . . Kick . | . . . . . . . . . . . . . . . . . . . . . . . . . . . . . . Crush 6 | . . 1 4 . 1 . . . . . . . . . . . . . . . . . . . . . . . . Escape Stasis 134 | . . . . . . . . . . . 10 . . . . . . . . . . . . 57 . . . . 67 Rewire 8 | . . . . . . . . . . . . . 8 . . . . . . . . . . . . . . . . Trap 26 | . . . . . . . . . . . . . 9 . 3 . 10 4 . . . . . . . . . . . Miscellaneous 8 | . . . . . . . . . . . . . . . . . . . 8 . . . . . . . . . . Route ------- -11/Scrapyard -10/Materials (discovered 6 exits: *Mat x3 / *Min x2 / Sub) -10/Mines (discovered 3 exits: *Mat x2 / [*Exi]) -9/Materials (discovered 5 exits: *Mat x3 / *Min x2) -9/Mines (discovered 2 exits: *Mat x2) -8/Materials (discovered 3 exits: *Fac x3) -7/Factory (discovered 7 exits: *Fac x4 / *Sto / *Low x2) -7/Lower Caves -7/Zion (discovered 2 exits: *Dee / [*Pro]) -7/Deep Caves -6/Proximity Caves -6/Factory (discovered 6 exits: *Fac x4 / *Low x2) -6/Lower Caves -6/Lower Caves (discovered 2 exits: *Fac / *Dat) -6/Data Miner -5/Proximity Caves -5/Factory (discovered 3 exits: *Fac / *Upp x2) -5/Upper Caves -5/Upper Caves -5/Warlord -4/Proximity Caves -4/Factory -4/Waste -4/Factory (discovered 4 exits: Upp x2 / *Ext x2) -4/Extension (discovered 2 exits: *Res / [*Cet]) -3/Research (discovered 4 exits: Res / Arm / *Tes x2) -3/Testing -2/Research (discovered 4 exits: *Acc x2 / *Qua x2) -2/Quarantine (discovered 3 exits: *Acc / *Sec / *Frg) -2/Protoforge (discovered 1 exit: *Acc) History --------- Turn | Location | Event 9 | -11/Scrapyard | Discovered new exit (range 14) 149 | -11/Scrapyard | Entered Materials 311 | -10/Materials | Build established: Mutant 506 | -10/Materials | Discovered new exit (range 3) 1122 | -10/Materials | Discovered new exit (range 16) 1688 | -10/Materials | Discovered new exit (range 16) 1708 | -10/Materials | Learned 2 Storage zone layouts 1739 | -10/Materials | Identified exit to Mines 1911 | -10/Materials | Loaded intel: 15 trap records 1924 | -10/Materials | Learned Storage stockpile data 1930 | -10/Materials | Learned location of 1 exit from Recycling 1931 | -10/Materials | Learned 2 Mines zone layouts 1932 | -10/Materials | Identified exit to Materials 1932 | -10/Materials | Identified exit to Subcaves 1932 | -10/Materials | Learned location of 1 exit from Materials 2562 | -10/Materials | Entered Mines 2692 | -10/Mines | Assembled infested the area 3149 | -10/Mines | Core integrity fell below 50% 3165 | -10/Mines | Found a Scrap Suit stashed away for nefarious purposes 3168 | -10/Mines | Found Scrap Suit 3182 | -10/Mines | Lost 3 parts (1p1n1w) 3220 | -10/Mines | Received a Mining Laser from a helpful Derelict 3263 | -10/Mines | Received a Rocket Launcher from a helpful Derelict 3308 | -10/Mines | Assisted by bots powering up and referring to "LRC-V3" 3430 | -10/Mines | Learned Materials emergency access door positions 3784 | -10/Mines | Discovered new exit (range 5) 3891 | -10/Mines | Entered Materials 3891 | -9/Materials | Accompanied by 2 allies 3891 | -9/Materials | Evolved 2 slots: Propulsion x1, Utility x1 3892 | -9/Materials | Identified exit to Mines 3893 | -9/Materials | Identified exit to Materials 4538 | -9/Materials | Build established: Scavenger-Mutant 5167 | -9/Materials | Discovered exit to Materials (range 8) 5300 | -9/Materials | Learned location of 1 exit from Storage 5506 | -9/Materials | Learned location of 3 exits from Materials 5531 | -9/Materials | Learned Materials stockpile data 5609 | -9/Materials | Learned Materials stockpile data 5901 | -9/Materials | Discovered exit to Mines (range 11) 6055 | -9/Materials | Discovered exit to Materials (range 7) 6824 | -9/Materials | Entered Mines 7033 | -9/Mines | Learned Materials emergency access door positions 7146 | -9/Mines | Learned Materials terminal intel 7159 | -9/Mines | Learned location of Zion (-7) 7207 | -9/Mines | Found a damaged Exp. Sensor Array with a note attached 7212 | -9/Mines | Found Prototype Device 7429 | -9/Mines | Joined a pair of Derelicts in attacking an 0b10 outpost 7692 | -9/Mines | Entered Materials 7692 | -8/Materials | Evolved 2 slots: Propulsion x1, Utility x1 7693 | -8/Materials | Identified exit to Factory 7696 | -8/Materials | Loaded intel: 12 terminal locations 8382 | -8/Materials | Repaired Adv. Beam Cannon 8434 | -8/Materials | Repaired Adv. Beam Cannon 8468 | -8/Materials | Repaired Med. Armor Plating 9451 | -8/Materials | Identified Exp. Sensor Array 9499 | -8/Materials | Central database locked down 10009 | -8/Materials | Learned location of Extension (-4) 10087 | -8/Materials | Learned Factory emergency access door positions 10215 | -8/Materials | Learned location of 1 exit from Recycling 10302 | -8/Materials | Learned 2 Lower Caves zone layouts 10350 | -8/Materials | Learned 4 Factory zone layouts 10556 | -8/Materials | Build established: Hacker-Mutant 10757 | -8/Materials | Core integrity fell below 50% 10892 | -8/Materials | First assault squad dispatched 10917 | -8/Materials | Core integrity fell below 20% 10972 | -8/Materials | Entered Factory 10972 | -7/Factory | Evolved 2 slots: Propulsion x1, Utility x1 10973 | -7/Factory | Identified exit to Factory 10978 | -7/Factory | Lost 4 parts (1p1u2w) 11541 | -7/Factory | Discovered exit to Factory (range 9) 11652 | -7/Factory | Discovered new exit (range 10) 11654 | -7/Factory | Identified exit to Lower Caves 11667 | -7/Factory | Fabricated S-27 Virus? 11778 | -7/Factory | Build established: Hacker-Sprinter 11893 | -7/Factory | Discovered new exit (range 3) 11894 | -7/Factory | Identified exit to Storage 11975 | -7/Factory | Central database locked down 12157 | -7/Factory | Destroyed 7 combat bots 12164 | -7/Factory | Repaired Broken Exp. Sensor Array? 12165 | -7/Factory | Lost 4 parts (1p3n) 12172 | -7/Factory | First assault squad dispatched 12272 | -7/Factory | Repaired Broken Cesium-ion Thruster? 12381 | -7/Factory | Discovered exit to Lower Caves (range 16) 12419 | -7/Factory | Build established: Scavenger-Sprinter 12439 | -7/Factory | Entered Lower Caves 12725 | -7/Lower Caves | Build established: Hacker-Sprinter 12857 | -7/Lower Caves | A Derelict revealed a hidden shortcut to a safe place 12965 | -7/Lower Caves | Identified exit to Zion 12966 | -7/Lower Caves | Entered Zion 12969 | -7/Zion | Given the Hacking Drone Bay 13035 | -7/Zion | Discovered new exit (range 11) 13074 | -7/Zion | Learned Factory emergency access door positions 13091 | -7/Zion | Met Imprinter 13111 | -7/Zion | Received a hallucinogenic algorithm 13115 | -7/Zion | Learned location of Recycling (-7) 13168 | -7/Zion | Acquired unknown access codes intercepted by a Zionite 13174 | -7/Zion | Found Prototype Special Weapon 13174 | -7/Zion | Identified RU-N14's Throwing Claymores 13208 | -7/Zion | Found RU-N14's Throwing Claymores 13212 | -7/Zion | Found RU-N14's Throwing Claymores 13230 | -7/Zion | Gained Derelict followers 13249 | -7/Zion | Opened final containment barrier to the Deep Caves 13253 | -7/Zion | Discovered new exit (range 3) 13253 | -7/Zion | Saw the warning signs outside the Deep Caves entrance 13253 | -7/Zion | Identified exit to Deep Caves 13349 | -7/Zion | Entered Deep Caves 13349 | -7/Deep Caves | Accompanied by 6 allies 13460 | -7/Deep Caves | Attacked by Z-Imprinter 13480 | -7/Deep Caves | Allies destroyed Z-Imprinter 13503 | -7/Deep Caves | Lost 3 allies 13559 | -7/Deep Caves | Z-Facility disabled 13649 | -7/Deep Caves | Lost 3 allies 13675 | -7/Deep Caves | Found Prototype Protection 13675 | -7/Deep Caves | Identified Zio. Weapon Casing 13693 | -7/Deep Caves | Found Prototype Protection 13693 | -7/Deep Caves | Identified Zio. Heavy Carapace 13878 | -7/Deep Caves | Discovered new exit (range 9) 13884 | -7/Deep Caves | Identified exit to Proximity Caves 13889 | -7/Deep Caves | Entered Proximity Caves 13946 | -6/Proximity Caves | Build established: Scavenger-Mutant 14061 | -6/Proximity Caves | Spotter reported a threat 14110 | -6/Proximity Caves | Spotter reported a threat 14235 | -6/Proximity Caves | Spotter reported a threat 14337 | -6/Proximity Caves | Entered Factory 14337 | -6/Factory | Evolved 2 slots: Utility x2 14486 | -6/Factory | Watched by a mysterious "MATRIX" hacker. 14543 | -6/Factory | Identified exit to Lower Caves 14669 | -6/Factory | Build established: Scavenger-Sprinter 14687 | -6/Factory | Search patrols dispatched 14692 | -6/Factory | Discovered new exit (range 15) 14696 | -6/Factory | Identified exit to Factory 14758 | -6/Factory | Discovered exit to Factory (range 7) 14825 | -6/Factory | Fabricated Q-thruster (x2) 15037 | -6/Factory | Search patrols dispatched 15173 | -6/Factory | Discovered exit to Factory (range 16) 15263 | -6/Factory | Spotted B-75 Beast 15284 | -6/Factory | Discovered exit to Factory (range 16) 15316 | -6/Factory | Build established: Sprinter 15333 | -6/Factory | Entered Lower Caves 15348 | -6/Lower Caves | Encountered a Warlord checkpoint 15450 | -6/Lower Caves | Entered a destroyed Warlord outpost 15528 | -6/Lower Caves | Discovered new exit (range 6) 15531 | -6/Lower Caves | Identified exit to Lower Caves 15544 | -6/Lower Caves | Entered another Lower Caves area 15585 | -6/Lower Caves | Attracted the attention of an 0b10 checkpoint 15633 | -6/Lower Caves | Discovered exit to Factory (range 6) 15934 | -6/Lower Caves | Entered an active Warlord outpost 15936 | -6/Lower Caves | Learned location of 1 exit from Research 15936 | -6/Lower Caves | Learned Factory emergency access door positions 15936 | -6/Lower Caves | Learned Factory stockpile data 15936 | -6/Lower Caves | Learned Research security intel 15957 | -6/Lower Caves | Learned Factory garrison access intel 16547 | -6/Lower Caves | Build established: Derelict-Mutant 16676 | -6/Lower Caves | Discovered new exit (range 6) 16678 | -6/Lower Caves | Identified exit to Data Miner 16734 | -6/Lower Caves | Entered Data Miner 16734 | -6/Data Miner | Discovered new exit (range 6) 16741 | -6/Data Miner | Met Data Miner 16748 | -6/Data Miner | Learned location of Section 7 (-2) 16748 | -6/Data Miner | Acquired the access code to Warlord's prototype stash 16754 | -6/Data Miner | Received God Mode back door access code from Data Miner 16763 | -6/Data Miner | Identified exit to Proximity Caves 16764 | -6/Data Miner | Entered Proximity Caves 17032 | -5/Proximity Caves | Encountered a Derelict sapper outpost 17329 | -5/Proximity Caves | Discovered exit to Factory (range 13) 17343 | -5/Proximity Caves | Learned Factory terminal intel 17386 | -5/Proximity Caves | Entered Factory 17386 | -5/Factory | Evolved 2 slots: Propulsion x1, Utility x1 17389 | -5/Factory | Loaded intel: 26 terminal locations 17390 | -5/Factory | Loaded intel: 4 garrison access locations 17640 | -5/Factory | Fabricated Cld. VTOL Module? 17727 | -5/Factory | Fabricated Cld. VTOL Module? 17841 | -5/Factory | Fabricated Cld. VTOL Module (x1) 17913 | -5/Factory | Fabricated Exp. Sensor Array (x1) 17936 | -5/Factory | Build established: Hacker-Sprinter 17960 | -5/Factory | Fabricated Cld. VTOL Module (x1) 18097 | -5/Factory | Discovered new exit (range 15) 18132 | -5/Factory | Discovered new exit (range 10) 18188 | -5/Factory | Identified exit to Upper Caves 18261 | -5/Factory | Fabricated Lgt. Regenerative Plating? 18295 | -5/Factory | Build established: Machinist-Scout 18330 | -5/Factory | Entered Upper Caves 18345 | -5/Upper Caves | Entered an active Warlord outpost 18346 | -5/Upper Caves | Learned Factory trap positions 18346 | -5/Upper Caves | Learned Research security intel 18417 | -5/Upper Caves | Identified exit to Upper Caves 18877 | -5/Upper Caves | Learned Factory emergency access door positions 18969 | -5/Upper Caves | Found Alien Artifact 18985 | -5/Upper Caves | Entered another Upper Caves area 19012 | -5/Upper Caves | Learned location of Armory (-3) 19042 | -5/Upper Caves | Encountered a Warlord checkpoint 19049 | -5/Upper Caves | Learned Factory terminal intel 19277 | -5/Upper Caves | Discovered new exit (range 8) 19278 | -5/Upper Caves | Identified exit to Warlord 19509 | -5/Upper Caves | Entered Warlord 19516 | -5/Warlord | System corruption cleaned by Quarantine Array 19552 | -5/Warlord | Found Prototype Special Weapon 19552 | -5/Warlord | Identified RU-N14's Throwing Claymores v3 19604 | -5/Warlord | Met Warlord 19629 | -5/Warlord | Warlord's base attacked by MAIN.C 19629 | -5/Warlord | Found Prototype Processor 19629 | -5/Warlord | Identified Exp. Target Analyzer 19631 | -5/Warlord | Found Prototype Device 19631 | -5/Warlord | Identified System Purifier 19636 | -5/Warlord | Found Prototype Device 19636 | -5/Warlord | Identified Exp. Phase Shifter 19915 | -5/Warlord | Lost 4 allies 19919 | -5/Warlord | Build established: Commander-Scout 19979 | -5/Warlord | Warlord forces counterattacked 20044 | -5/Warlord | Spotted Striker 20066 | -5/Warlord | Spotted Striker 20084 | -5/Warlord | Spotted Executioner 20086 | -5/Warlord | Discovered new exit (range 13) 20101 | -5/Warlord | Identified exit to Proximity Caves 20124 | -5/Warlord | Lost 13 allies 20129 | -5/Warlord | Spotted Executioner 20129 | -5/Warlord | Entered Proximity Caves 20129 | -4/Proximity Caves | Accompanied by 3 allies 20135 | -4/Proximity Caves | Learned 4 Research zone layouts 20198 | -4/Proximity Caves | Murdered 3 allies 20280 | -4/Proximity Caves | Build established: Hacker-Scout 20636 | -4/Proximity Caves | Discovered new exit (range 10) 20638 | -4/Proximity Caves | Identified exit to Factory 20653 | -4/Proximity Caves | Entered Factory 20653 | -4/Factory | Evolved 2 slots: Power x1, Propulsion x1 20654 | -4/Factory | Loaded intel: 128 trap records 20656 | -4/Factory | Loaded intel: 28 terminal locations 20952 | -4/Factory | Build established: Machinist-Scout 21001 | -4/Factory | Discovered new exit (range 5) 21001 | -4/Factory | Identified exit to Research 21011 | -4/Factory | Manually triggered Chute Trap 21011 | -4/Factory | Sucked down chute 21011 | -4/Factory | Entered Waste 21015 | -4/Waste | Spotted C-40 Crusher 21017 | -4/Waste | Spotted C-40 Crusher 21019 | -4/Waste | Spotted C-40 Crusher 21019 | -4/Waste | Spotted C-40 Crusher 21026 | -4/Waste | EMP discharged 21034 | -4/Waste | Spotted C-40 Crusher 21038 | -4/Waste | Spotted C-40 Crusher 21047 | -4/Waste | Discovered new exit (range 11) 21052 | -4/Waste | Identified exit to Factory 21052 | -4/Waste | Entered Factory 21073 | -4/Factory | Identified exit to Upper Caves 21073 | -4/Factory | Identified exit to Extension 21179 | -4/Factory | Entered Extension 21229 | -4/Extension | Rescued A7 21234 | -4/Extension | Rescued a captive Derelict 21281 | -4/Extension | Build established: Hacker-Scout 21323 | -4/Extension | Rescued a captive Derelict 21326 | -4/Extension | Rescued a captive Derelict 21327 | -4/Extension | Rescued a captive Derelict 21331 | -4/Extension | Spotted B-86 Titan 21334 | -4/Extension | Rescued a captive Derelict 21613 | -4/Extension | Destroyed B-86 Titan 21637 | -4/Extension | Spotted B-86 Titan 21654 | -4/Extension | Rescued a captive Derelict 21681 | -4/Extension | Lost 5 allies 21687 | -4/Extension | Rescued a captive Derelict 21741 | -4/Extension | Rescued a captive Derelict 21742 | -4/Extension | Rescued a captive Derelict 21792 | -4/Extension | Murdered A7 21795 | -4/Extension | Extracted ID and sensor layout for unrecognized location from A7's data core 21800 | -4/Extension | Discovered exit to Research (range 10) 21800 | -4/Extension | Discovered new exit (range 6) 21801 | -4/Extension | Entered Research 21801 | -3/Research | Evolved 2 slots: Propulsion x1, Utility x1 21802 | -3/Research | Identified exit to Research 22096 | -3/Research | Identified exit to Armory 22096 | -3/Research | Identified exit to Testing 22171 | -3/Research | Entered Testing 22196 | -3/Testing | Found Prototype Energy Gun 22196 | -3/Testing | Identified Tachyon Dispersion Ray 22257 | -3/Testing | Found Portable AFG 22285 | -3/Testing | Found Prototype Device 22285 | -3/Testing | Identified Exp. Hardlight Generator 22311 | -3/Testing | Found Prototype Launcher 22311 | -3/Testing | Identified Z-bomb Delivery System 22409 | -3/Testing | Discovered exit to Research (range 13) 22412 | -3/Testing | Spotted PH-VBIXWFTTKQ 22483 | -3/Testing | Entered Research 22483 | -2/Research | Warlord forces began assault on 0b10 22483 | -2/Research | Evolved 2 slots: Utility x2 22498 | -2/Research | Identified exit to Quarantine 22498 | -2/Research | Targeted by mysterious "MATRIX" hacker. 22590 | -2/Research | Discovered new exit (range 14) 22593 | -2/Research | Research machine network offline 22650 | -2/Research | Met up with Warlord 22989 | -2/Research | Discovered new exit (range 12) 23193 | -2/Research | Borebot progress halted 23272 | -2/Research | Borebot progress halted 23303 | -2/Research | Borebot progress halted 23336 | -2/Research | Spotted Striker 23340 | -2/Research | Spotted Executioner 23502 | -2/Research | Warlord invited to help at Command 23502 | -2/Research | Given Cave Seal Controls access code 23526 | -2/Research | Spotted Executioner 23531 | -2/Research | Entered Quarantine 23617 | -2/Quarantine | Discovered new exit (range 14) 23631 | -2/Quarantine | Spotted Fortress 23643 | -2/Quarantine | Discovered new exit (range 5) 23643 | -2/Quarantine | Discovered new exit (range 6) 23643 | -2/Quarantine | Identified exit to Section 7 23644 | -2/Quarantine | Identified exit to Protoforge 23647 | -2/Quarantine | Entered Protoforge 23730 | -2/Protoforge | Discovered new exit (range 10) 23731 | -2/Protoforge | Identified exit to Access 23798 | -2/Protoforge | Found Prototype Device 23798 | -2/Protoforge | Identified Exp. System Purifier 23801 | -2/Protoforge | Found Exp. System Purifier 23804 | -2/Protoforge | Found Prototype Protection 23804 | -2/Protoforge | Identified Cep. Core Shell 23808 | -2/Protoforge | Found Prototype Device 23808 | -2/Protoforge | Identified Cep. Recoil Nullifier 23842 | -2/Protoforge | Spotted V343-w 23849 | -2/Protoforge | Spotted Decapitator 23849 | -2/Protoforge | Spotted Decapitator 23849 | -2/Protoforge | Spotted Decapitator 23849 | -2/Protoforge | Spotted Decapitator 23935 | -2/Protoforge | Build established: Scavenger-Ninja 24023 | -2/Protoforge | Spotted Immortal 24030 | -2/Protoforge | Spotted Immortal 24031 | -2/Protoforge | Spotted Immortal 24128 | -2/Protoforge | Spotted Hotshot 24129 | -2/Protoforge | Spotted Hotshot 24136 | -2/Protoforge | Spotted Hotshot 24136 | -2/Protoforge | Spotted Hotshot 24160 | -2/Protoforge | Spotted Immortal 24160 | -2/Protoforge | Spotted Immortal 24160 | -2/Protoforge | Spotted Decapitator 24160 | -2/Protoforge | Spotted Decapitator 24160 | -2/Protoforge | Spotted Decapitator 24160 | -2/Protoforge | Spotted Decapitator 24242 | -2/Protoforge | Lost 4 parts (1p3u) 24278 | -2/Protoforge | Identified Dimensional Node Initializer 24278 | -2/Protoforge | Initialized slip node 24294 | -2/Protoforge | Destroyed Hotshot 24299 | -2/Protoforge | Found Prototype Device 24299 | -2/Protoforge | Identified Crosscalibrator 24309 | -2/Protoforge | Lost 4 parts (1n2u1w) 24318 | -2/Protoforge | Found Cep. NT7 Matterbank 24321 | -2/Protoforge | Found Cep. Matter Streamer 24325 | -2/Protoforge | Spotted V961-v 24325 | -2/Protoforge | Spotted V052-c 24325 | -2/Protoforge | Spotted V471-g 24325 | -2/Protoforge | Spotted V042-y 24393 | -2/Protoforge | Superfortress began startup sequence 24398 | -2/Protoforge | Found Cep. Deflector Sword 24426 | -2/Protoforge | Core integrity fell below 50% 24428 | -2/Protoforge | Found Cep. XC Strikerail 24431 | -2/Protoforge | Found Cep. Variable Chargecaster 24441 | -2/Protoforge | Found Cep. XC Strikerail 24535 | -2/Protoforge | Destroyed Immortal 24551 | -2/Protoforge | Found Prototype Device 24551 | -2/Protoforge | Identified Cep. Antimissile System 24567 | -2/Protoforge | Found Exp. Jetlance 24575 | -2/Protoforge | Found Cep. Plasma Driver 24578 | -2/Protoforge | Found Faulty Cep. Lightning Penetrator 24582 | -2/Protoforge | Found Faulty Cep. Lightning Penetrator 24591 | -2/Protoforge | Destroyed Immortal 24605 | -2/Protoforge | Found Cep. XC Strikerail 24613 | -2/Protoforge | Found Cep. Helical Railcannon 24628 | -2/Protoforge | Found Faulty Cep. Heavy Railcannon 24633 | -2/Protoforge | Found Faulty Cep. Heavy Railcannon 24646 | -2/Protoforge | Found Prototype Processor 24646 | -2/Protoforge | Identified Exp. Melee Analysis Suite 24653 | -2/Protoforge | Found Cep. Plasma Driver 24845 | -2/Protoforge | Build established: Scavenger-Mutant 24883 | -2/Protoforge | Found Cep. XC Strikerail 24886 | -2/Protoforge | Found Faulty Cep. XC Strikerail 24910 | -2/Protoforge | Destroyed Decapitator 24919 | -2/Protoforge | Destroyed Decapitator 24987 | -2/Protoforge | Spotted V852-l 25001 | -2/Protoforge | Destroyed V852-l 25010 | -2/Protoforge | Found Prototype Hover Unit 25010 | -2/Protoforge | Identified Cep. Gyrokinetic System 25015 | -2/Protoforge | Found Prototype Device 25015 | -2/Protoforge | Identified Cep. Weapon Articulator 25017 | -2/Protoforge | Found Prototype Device 25017 | -2/Protoforge | Identified Exp. Kinecellerator 25024 | -2/Protoforge | Found Cep. Networked Targeting System 25032 | -2/Protoforge | Lost 3 parts (2n1u) 25044 | -2/Protoforge | Found Cep. Hypertargeting System 25233 | -2/Protoforge | Garrison activated, responded to threat 25349 | -2/Protoforge | Lost 4 parts (3n1u) 25366 | -2/Protoforge | Spotted Decapitator 25366 | -2/Protoforge | Spotted Decapitator 25366 | -2/Protoforge | Spotted V922-x 25366 | -2/Protoforge | Spotted V205-n 25367 | -2/Protoforge | Spotted Decapitator 25386 | -2/Protoforge | Found Cep. Projectile Intercept Suite 25389 | -2/Protoforge | Found Cep. Reaction Jets 25404 | -2/Protoforge | Found Prototype Device 25404 | -2/Protoforge | Identified Cep. Phase Shift Module 25407 | -2/Protoforge | Found Prototype Protection 25407 | -2/Protoforge | Identified Cep. RG22 Armor 25411 | -2/Protoforge | Found Cep. RG22 Armor 25415 | -2/Protoforge | Found Cep. Core Shell 25428 | -2/Protoforge | Found Prototype Device 25428 | -2/Protoforge | Identified Exp. Force Field 25454 | -2/Protoforge | Destroyed V922-x 25474 | -2/Protoforge | Destroyed Decapitator 25481 | -2/Protoforge | Destroyed Decapitator 25490 | -2/Protoforge | Destroyed Decapitator 25495 | -2/Protoforge | Found Prototype Launcher 25495 | -2/Protoforge | Identified Cep. Concussive Dispersal Blaster 25520 | -2/Protoforge | Lost 8 parts (3n3u2w) 25539 | -2/Protoforge | Found Cep. Core Shell 25543 | -2/Protoforge | Found Cep. RG22 Armor 25571 | -2/Protoforge | Found Exp. Remote Shield 25827 | -2/Protoforge | Found Cep. Core Shell 25829 | -2/Protoforge | Found Cep. Core Shell 25845 | -2/Protoforge | Lost 7 parts (1p4u2w) 25897 | -2/Protoforge | First assault squad dispatched 25924 | -2/Protoforge | Incoming assault squad redirected 26015 | -2/Protoforge | Destroyed Immortal 26070 | -2/Protoforge | Destroyed Immortal 26095 | -2/Protoforge | Lost 7 parts (2n4u1w) 26106 | -2/Protoforge | Found Prototype Flight Unit 26106 | -2/Protoforge | Identified Cep. Fieldthrust Drive 26115 | -2/Protoforge | Spotted V831-c 26117 | -2/Protoforge | Found Cep. Biometal Exoskeleton 26168 | -2/Protoforge | System corruption reached 10% 26173 | -2/Protoforge | Incoming assault squad redirected 26177 | -2/Protoforge | Incoming assault squad redirected 26230 | -2/Protoforge | Found Cep. Lightning Penetrator 26235 | -2/Protoforge | Found Cep. Lightning Penetrator 26242 | -2/Protoforge | Found Faulty Cep. Variable Chargecaster 26296 | -2/Protoforge | Found Prototype Device 26296 | -2/Protoforge | Identified Femtoactuators 26357 | -2/Protoforge | Core integrity fell below 20% 26450 | -2/Protoforge | Found Exp. Terror Saw 26463 | -2/Protoforge | Lost 4 parts (2p1n1u) 26468 | -2/Protoforge | System corruption reached 30% 26539 | -2/Protoforge | Lost 3 parts (1u2w) 26539 | -2/Protoforge | Found Exp. Terror Saw 26542 | -2/Protoforge | Found Faulty Cep. Helical Railcannon 26569 | -2/Protoforge | Spotted V161-t 26569 | -2/Protoforge | Spotted V103-x 26570 | -2/Protoforge | Spotted Immortal 26570 | -2/Protoforge | Spotted Immortal 26595 | -2/Protoforge | Found Prototype Device 26595 | -2/Protoforge | Identified Exp. Active Sensor Suite 26622 | -2/Protoforge | Additional patrols dispatched to research labs 26629 | -2/Protoforge | Found Cep. Navigation Harness 26632 | -2/Protoforge | Found Transdimensional Reconstructor 26632 | -2/Protoforge | Warped through subspace 26638 | -2/Protoforge | Destroyed by Y-72 Warden with Railgun Last Messages --------------- 26618_ Critical hit (Destroy). 26618_ Hyb. Graviton Reactor destroyed. 26620_ CX-V1P: "Oh no, you really shouldn't have this thing. That would not be good." 26621_ CX-V1P: "Not least of all because I'm close to achieving my goal of using it myself to finally escape this place." 26622_ CX-V1P: "Guards!" 26622_ ALERT: Tinkerer labs infiltrated, dispatching additonal patrols. 26624_ ATD Cell breached. 26627_ Penetrated by Slug. 26628_ System corrupted: Matter fused (-7). 26629_ Acquired Cep. Navigation Harness. 26632_ Acquired Transdimensional Reconstructor. 26632_ Warped through subspace. 26632_ Deflected attack with Cep. Deflector Sword. 26632_ Penetrated by Slug. 26633_ Acquired 27 matter. 26635_ Exp. Surge Thruster destroyed. 26635_ Penetrated by Slug. 26635_ Slug penetrates Closed Research Cell. Map ----- +----------------------------------------------------+ | | | | | | | | | | | ?????????????????????????????????????????????????? | | ?????????????????????????????????????????????????? | | ?????????????????????????????????????????????????? | | ?????????????????????????????????????????????????? | | ?????????????????????????????????????????????????? | | ?????????????????############????????????????????? | | ?????????????????#""""#"""""#????????????????????? | | ?????????????????#" !" " " "????????????????????? | | ?????????????????#" " "????????????????????? | | ??????????????????" ?" "????????????????????? | | ?????????????????## """ """"##???????????????? | | ################## ################# | | ^ " | | ^ %" | | | | ################## ################# | | ?????????????????##"""" """ ##???????????????? | | ??????????????????????" " "#???????????????? | | ??????????????????????" " "#???????????????? | | ??????????????????????" " "#???????????????? | | ??????????????????????# @ #""""#???????????????? | | ??????????????????????## Y#######???????????????? | | ???????????????????????#Y #?????????????????????? | | ???????????????????????# #?????????????????????? | | ???????????????????????# #?????????????????????? | | ???????????????????????# #?????????????????????? | | ???????????????????????# #?????????????????????? | | ???????????????????????# #?????????????????????? | | ???????????????????????# #?????????????######??? | | ???????????????????????# #####################?? | | ???????????????????????# ^ ##?? | | ???????????????????????# ^ #?? | | ???????????????????????# #?? | | ???????????????????????## ################ ##?? | | ????????????????????????####?????????????## ##?? | | ?????????????????????????????????????????## ##?? | | ?????????????????????????????????????????## ##?? | | ?????????????????????????????????????????## ###? | | ?????????????????????????????????????????## #### | | ?????????????????????????????????????????## | | ?????????????????????????????????????????## | | ?????????????????????????????????????????## #### | | ?????????????????????????????????????????## ##?? | | ?????????????????????????????????????????## ##?? | | ?????????????????????????????????????????## ##?? | +----------------------------------------------------+ Best States ------------- Heat Dissipation 123 Energy Generation 47 Energy Capacity 1650 Matter Stores 300 Matter Capacity 1050 Sight Range 20 Robot Scan Range 20 Terrain Scan Density 10 ECM Strength 1 Jamming Range 16 Additional Mass Support 9 Armor Coverage 400 Resistance: TH 15 Core Shielding 90 Propulsion Shielding 66 Utility Shielding 66 Projectile Deflection 15 Evasion (%) 78 Targeting Accuracy 10 Target Analysis 12 Recoil Reduction 4 Offensive Hacking 22 Defensive Hacking 14 Authchip Count 4 Item Schematics ----------------- Weight Redist. System | -9/Materials | Scanalyzed Lgt. Armor Plating | -9/Materials | Scanalyzed Med. Storage Unit | -9/Materials | Hacked VTOL Module | -9/Materials | Scanalyzed Exp. Sensor Array | -8/Materials | Scanalyzed Cesium-ion Thruster | -8/Materials | Scanalyzed Beam Cannon | -8/Materials | Scanalyzed Imp. Utility Shielding | -7/Factory | Scanalyzed Hvy. Laser | -7/Zion | Archive Proton Cannon | -7/Zion | Archive Phase Cannon | -7/Zion | Archive Xenon Bombardment Thruster | -7/Zion | Archive Microactuators | -7/Zion | Archive Imp. Component Analysis Suite | -7/Zion | Archive Imp. Arc Projector | -7/Zion | Archive Plasma Cannon | -7/Zion | Archive Force Field | -7/Zion | Archive Focal Shield | -7/Zion | Archive Imp. Cooling System | -7/Zion | Archive Stasis Canceller | -7/Zion | Archive Imp. Titanium Leg | -7/Zion | Archive Lgt. Antimatter Reactor | -6/Factory | Hacked Adv. System Shield | -6/Factory | Hacked Imp. System Shield | -6/Factory | Scanalyzed Combat Drone Bay | -6/Data Miner | Free Lgt. Regenerative Plating | -6/Data Miner | Free Enh. Flexi-carbon Leg | -6/Data Miner | Free Imp. Energy Well | -6/Data Miner | Free Imp. Antigrav System | -6/Data Miner | Free Neutron Cannon | -6/Data Miner | Free Adv. Transmission Jammer | -6/Data Miner | Free Adv. Datajack | -6/Data Miner | Free Graphene Brace | -6/Data Miner | Free Imp. Armor Integrity Analyzer | -6/Data Miner | Free Adv. Component Analysis Suite | -6/Data Miner | Free Cld. VTOL Module | -5/Factory | Hacked Exp. Gyrokinetic Inverter | -2/Protoforge | Archive Tactical Quantum Warhead | -2/Protoforge | Archive Robot Schematics ------------------ A-02 Transporter | -7/Zion | Archive Y-54 Guardian | -7/Zion | Archive B-48 Gladiator | -7/Zion | Archive G-73 Enforcer | -7/Zion | Archive H-66 Slayer | -6/Data Miner | Free B-60 Warrior | -6/Data Miner | Free M-22 Extractor | -6/Data Miner | Free R-10 Processor | -2/Protoforge | Archive Fabricated ------------ S-27 Virus | x4 | -7/Factory | Preloaded Q-thruster | x2 | -6/Factory | Preloaded, Authchip Cld. VTOL Module | x1 | -5/Factory | Authchip Cld. VTOL Module | x1 | -5/Factory | Authchip Cld. VTOL Module | x1 | -5/Factory | Authchip Exp. Sensor Array | x1 | -5/Factory | Authchip Cld. VTOL Module | x1 | -5/Factory | Authchip Lgt. Regenerative Plating | x1 | -5/Factory | Authchip Repaired ---------- Adv. Beam Cannon | 6% | -8/Materials Adv. Beam Cannon | 28% | -8/Materials Med. Armor Plating | 30% | -8/Materials Exp. Sensor Array | 62% | -7/Factory | Broken Cesium-ion Thruster | 99% | -7/Factory | Broken Studied --------- Beam Cannon | -9/Materials | Hacked Rocket Launcher | -9/Materials | Hacked Flight Unit | -9/Materials | Hacked VTOL Module | -8/Materials | Hacked Surge Thruster | -7/Factory | Hacked Lgt. Antimatter Reactor | -4/Factory | Hacked Adv. Plasma Cannon | -4/Factory | Hacked Alien Tech Used ----------------- Dimensional Node Initializer Transdimensional Reconstructor Achievements -------------- Some Acronyms Are Better Than Others Challenges ------------ None Game ------ Seed DrainedPortableBox Manual? 0 Play Time 05:04:22 Cumulative 378.7 hours Start 2026.04.04 @ 09:19:32 End 2026.04.05 @ 13:49:29 Sessions 3 Manual Loads 0 Difficulty Rogue Special Mode None Game No. 289 Rogue 289 Adventurer 0 Explorer 0 Win Type - Total 24 Types 14/0/8/2/0/0/0/0/0/0 Lore% 87 Gallery% 79 Achievement% 67 Wizard Run 0 Options --------- Layout 1 ASCII 0 Keyboard 0 Movement Numpad Keybinds 0 Fullscreen 1 Font 32/SmallcapsGlow Map View 77x35 Zoom Use 0% Tactical HUD 1 Map Filters NONE Filters NONE Steam 1 RUN: 4e20402c-ec16-4889-adb9-7eeb9a792bac